{"text_format":"1","workbook":"xlsx","n_sheets":6,"sheets":["表紙","自己採点シート","学習自己点検シート ","単位修得状況確認表（共通教育科目，外国人留学生）","単位修得状況確認表（専門教育科目）","累積グラフ"],"not_rendered":{"charts":8,"images":3,"macros":1,"external_links":0,"defined_names":16,"comments":0,"pivot_tables":0},"unopened":[],"bounds":{"document_bytes":16777216,"sheet_cells":100000,"rows_first":2000,"rows_last":500,"rows_between":2000,"halvings":0,"cell_chars":16384,"cell_head_chars":4096},"cells_cut":0,"cells_raw":0,"read":"whole","date_system":"1900"}

{"sheet":"表紙","index":0,"n_rows":35,"n_cols":2,"rows_kept":35,"cut":false,"hidden":false,"merged":[]}
[]
[]
[]
[]
[]
[]
[]
[]
[]
[]
[]
[null,"鹿児島大学工学部ポートフォリオ"]
[]
[]
[]
[]
[]
[]
[]
[]
[]
[]
[]
[]
[]
[]
[]
[]
[]
[]
[]
[null,"入学年度：平成31年度"]
[null,"学科：情報生体システム工学科"]
[null,"氏名："]
[null,"学籍番号："]

{"sheet":"自己採点シート","index":1,"n_rows":22,"n_cols":21,"rows_kept":22,"cut":false,"hidden":false,"merged":[[19,2,19,5],[20,2,20,5],[21,2,21,5],[13,2,13,5],[14,2,14,5],[15,2,15,5],[16,2,16,5],[17,2,17,5],[18,2,18,5],[12,2,12,5],[3,10,3,11],[3,19,3,20],[9,2,9,5],[10,2,10,5],[11,2,11,5]]}
[]
[null,"自己採点シート"]
[]
[null,null,null,null,null,null,null,null,null,"学籍番号",null,null,"氏名"]
[]
[null,"■学生のみなさんへ"]
[null,null,"今期受講した科目に関して、以下の項目に対して自己採点をしてください。(１０点満点)"]
[]
[]
[null,null,"項目",null,null,null,"2019年度\n前期","2019年度\n後期","2020年度\n前期","2020年度\n後期","2021年度\n前期","2021年度\n後期","2022年度\n前期","2022年度\n後期","2023年度\n前期","2023年度\n後期","2024年度\n前期","2024年度\n後期","2025年度\n前期","2025年度\n後期","卒業時"]
[null,1,"工学に関しての基礎知識\n（物理・化学・数学・情報など）"]
[null,2,"各工学分野での基礎知識\n（専門科目など）"]
[null,3,"人前での発表能力"]
[null,4,"人と話し合ったり議論する能力"]
[null,5,"チームの一員として取り組める（チームワーク）能力"]
[null,6,"英語、その他外国語による表現力"]
[null,7,"読書、講習会への参加、英会話や情報処理学習など大学以外での学習による自己啓発・生涯学習能力"]
[null,8,"社会性や国際感覚が身についているか。"]
[null,9,"倫理観、責任感が身についているか。"]
[null,10]
[null,11]
[null,12]

{"sheet":"学習自己点検シート ","index":2,"n_rows":68,"n_cols":13,"rows_kept":68,"cut":false,"hidden":false,"merged":[[4,8,4,9],[4,11,4,12],[7,2,7,12]]}
[]
[null,null,null,null,null,null,null,null,null,null,null,"年度","期"]
[null,"学習自己点検シート"]
[]
[null,null,null,null,null,null,null,"学籍番号",null,null,"氏名"]
[]
[null,"■学生のみなさんへ"]
[null,null,"学生生活全般に関して自己点検をお願いしています。今期受講した科目に関して、以下の質問項目に答えてください。面談時、指導教員（アドバイザー）の先生方から回答に対する具体的なアドバイスを受けてください。"]
[]
[]
[null,"■回答項目"]
[]
[null,1,"今期の目標は達成できましたか。"]
[]
[]
[]
[]
[null,2,"講義への取り組みは積極的でしたか。また、積極的に取り組むことができなかった講義は具体的に何ですか。"]
[]
[]
[]
[]
[null,3,"講義毎に勉強方法がつかめていますか。"]
[]
[]
[]
[]
[null,4,"それぞれの講義の理解度は自分の目標に達していますか。理解度が足りないと感じている講義は何ですか。"]
[]
[]
[]
[]
[null,5,"平日（試験勉強以外）１日当たりの勉強時間（平均）はどのくらいですか。勉強時間が足りないと感じている講義は何ですか。"]
[]
[]
[]
[]
[null,6,"アルバイトと勉強は両立できましたか。"]
[]
[]
[]
[]
[null,7,"サークル活動と勉強は両立できましたか。"]
[]
[]
[]
[]
[null,8,"卒業後の進路についてどのように考えていますか。"]
[]
[]
[]
[]
[null,9,"その他、アドバイスが必要なことはありますか。"]
[]
[]
[]
[]
[null,10]
[]
[]
[]
[]
[null,11]
[]
[]
[]
[]
[null,12]

{"sheet":"単位修得状況確認表（共通教育科目，外国人留学生）","index":3,"n_rows":37,"n_cols":49,"rows_kept":37,"cut":false,"hidden":false,"merged":[[29,15,29,16],[29,17,29,18],[29,19,29,20],[29,21,29,22],[29,0,29,6],[29,7,29,8],[29,9,29,10],[29,11,29,12],[29,13,29,14],[29,23,29,24],[29,35,29,36],[29,37,29,38],[29,25,29,26],[29,27,29,28],[29,29,29,30],[29,31,29,32],[29,33,29,34],[28,29,28,30],[28,31,28,32],[28,33,28,34],[28,35,28,36],[28,37,28,38],[27,0,27,6],[27,9,27,10],[27,11,27,12],[27,13,27,14],[28,27,28,28],[28,0,28,6],[28,7,28,8],[28,9,28,10],[28,11,28,12],[28,13,28,14],[28,15,28,16],[28,17,28,18],[28,19,28,20],[28,21,28,22],[28,23,28,24],[28,25,28,26],[27,7,27,8],[24,0,24,6],[25,1,25,10],[26,39,26,40],[27,37,27,38],[27,15,27,16],[27,17,27,18],[27,19,27,20],[27,21,27,22],[27,23,27,24],[27,25,27,26],[27,27,27,28],[27,29,27,30],[27,31,27,32],[27,33,27,34],[27,35,27,36],[17,0,23,0],[17,1,20,3],[18,4,20,4],[21,1,22,3],[21,40,22,40],[3,27,3,30],[3,31,3,34],[3,35,3,38],[4,35,4,36],[4,27,4,28],[4,29,4,30],[4,31,4,32],[4,33,4,34],[6,0,16,0],[6,1,11,3],[9,4,10,4],[12,1,13,3],[4,25,4,26],[14,1,15,3],[3,7,3,10],[3,11,3,14],[3,15,3,18],[3,19,3,22],[3,23,3,26],[1,0,1,41],[2,0,5,6],[2,7,2,38],[2,39,5,39],[2,40,5,40],[2,41,5,41],[4,7,4,8],[4,9,4,10],[4,11,4,12],[4,13,4,14],[4,37,4,38],[4,15,4,16],[4,17,4,18],[4,19,4,20],[4,21,4,22],[4,23,4,24]]}
[null,null,null,null,null,null,null,null,null,null,null,null,null,null,null,null,null,null,null,null,null,null,null,null,null,null,null,null,null,null,null,null,null,null,null,null,null,null,null,null,null,null,null,null,null,null,null,null,"A"]
["単位修得状況確認表（共通教育科目：外国人留学生）",null,null,null,null,null,null,null,null,null,null,null,null,null,null,null,null,null,null,null,null,null,null,null,null,null,null,null,null,null,null,null,null,null,null,null,null,null,null,null,null,null,null,null,null,null,null,null,"B"]
["　",null,null,null,null,null,null,"取得単位数およびGP",null,null,null,null,null,null,null,null,null,null,null,null,null,null,null,null,null,null,null,null,null,null,null,null,null,null,null,null,null,null,null,"取得単位数","要修得\n単位数","累積GP",null,null,"当該期修得単位の入力要領（共通教育科目）",null,null,null,"C"]
[null,null,null,null,null,null,null,"　年次",null,null,null,"　年次",null,null,null,"　年次",null,null,null,"　年次",null,null,null,"　年次",null,null,null,"　年次",null,null,null,"　年次",null,null,null,"　年次",null,null,null,null,null,null,null,null,"１．黄色枠に各科目(英語及び日本語の場合は修得",null,null,null,"D"]
[null,null,null,null,null,null,null,"１期",null,"２期",null,"３期",null,"４期",null,"５期",null,"６期",null,"７期",null,"８期",null,"９期",null,"10期",null,"11期",null,"12期",null,"13期",null,"14期",null,"15期",null,"16期",null,null,null,null,null,null,"　　した合計単位数)の修得単位数を記入する。",null,null,null,"F"]
[null,null,null,null,null,null,null,"単位","合計GP","単位","合計GP","単位","合計GP","単位","合計GP","単位","合計GP","単位","合計GP","単位","合計GP","単位","合計GP","単位","合計GP","単位","合計GP","単位","合計GP","単位","合計GP","単位","合計GP","単位","合計GP","単位","合計GP","単位","合計GP",null,null,null,null,null,"２．オレンジ枠に修得した必修科目・選択必修",null,null,null,"P"]
["必修科目","初年次教育科目",null,null,"初年次セミナーⅠ",null,null,null,null,null,null,null,null,null,null,null,null,null,null,null,null,null,null,null,null,null,null,null,null,null,null,null,null,null,null,null,null,null,null,{"$f":"SUM(H7,J7,L7,N7,P7,R7,T7,V7,X7,Z7,AB7,AD7,AF7,AH7,AJ7,AL7)","v":0},2,null,null,null,"　　科目それぞれの合計単位数を記入する。"]
[null,null,null,null,"初年次セミナーⅡ",null,null,null,null,null,null,null,null,null,null,null,null,null,null,null,null,null,null,null,null,null,null,null,null,null,null,null,null,null,null,null,null,null,null,{"$f":"SUM(H8,J8,L8,N8,P8,R8,T8,V8,X8,Z8,AB8,AD8,AF8,AH8,AJ8,AL8)","v":0},"－",null,null,null,"３．灰色枠に受講科目の合計GP（単位数×GP）"]
[null,null,null,null,"大学と地域",null,null,null,null,null,null,null,null,null,null,null,null,null,null,null,null,null,null,null,null,null,null,null,null,null,null,null,null,null,null,null,null,null,null,0,2,null,null,null,"　　を計算し、その値を入力する。"]
[null,null,null,null,"体育・健康","理論",null,null,null,null,null,null,null,null,null,null,null,null,null,null,null,null,null,null,null,null,null,null,null,null,null,null,null,null,null,null,null,null,null,0,1,null,null,null,"　（評価とGPの関係：A=4,B=3,C=2,D=1,F=0,Pは"]
[null,null,null,null,null,"実習",null,null,null,null,null,null,null,null,null,null,null,null,null,null,null,null,null,null,null,null,null,null,null,null,null,null,null,null,null,null,null,null,null,0,1,null,null,null,"　　GPの該当外なので合計GP欄は空欄とする。）"]
[null,null,null,null,"情報活用",null,null,null,null,null,null,null,null,null,null,null,null,null,null,null,null,null,null,null,null,null,null,null,null,null,null,null,null,null,null,null,null,null,null,0,2,null,null,null,"４．取得単位数を要修得単位数と比較して、"]
[null,"ｸﾞﾛｰﾊﾞﾙ教育科目",null,null,"英語",null,null,null,null,null,null,null,null,null,null,null,null,null,null,null,null,null,null,null,null,null,null,null,null,null,null,null,null,null,null,null,null,null,null,0,6,null,null,null,"　　単位取得状況を把握する。"]
[null,null,null,null,"異文化理解",null,null,null,null,null,null,null,null,null,null,null,null,null,null,null,null,null,null,null,null,null,null,null,null,null,null,null,null,null,null,null,null,null,null,0,2]
[null,"日本語・日本事情科目",null,null,"日本語",null,null,null,null,null,null,null,null,null,null,null,null,null,null,null,null,null,null,null,null,null,null,null,null,null,null,null,null,null,null,null,null,null,null,0,4,null,null,null,"※期をまたがって開講される科目は、成績の出"]
[null,null,null,null,"日本事情",null,null,null,null,null,null,null,null,null,null,null,null,null,null,null,null,null,null,null,null,null,null,null,null,null,null,null,null,null,null,null,null,null,null,0,"(4)",null,null,null,"　された期に記入する。例えば通年の場合、後"]
[null,"必修科目　計",null,null,null,null,null,null,{"$f":"SUM(I7:I16)","v":0},null,{"$f":"SUM(K7:K16)","v":0},null,{"$f":"SUM(M7:M16)","v":0},null,{"$f":"SUM(O7:O16)","v":0},null,{"$f":"SUM(Q7:Q16)","v":0},null,{"$f":"SUM(S7:S16)","v":0},null,{"$f":"SUM(U7:U16)","v":0},null,{"$f":"SUM(W7:W16)","v":0},null,{"$f":"SUM(Y7:Y16)","v":0},null,{"$f":"SUM(AA7:AA16)","v":0},null,{"$f":"SUM(AC7:AC16)","v":0},null,{"$f":"SUM(AE7:AE16)","v":0},null,{"$f":"SUM(AG7:AG16)","v":0},null,{"$f":"SUM(AI7:AI16)","v":0},null,{"$f":"SUM(AK7:AK16)","v":0},null,{"$f":"SUM(AM7:AM16)","v":0},0,20,{"$f":"SUM(I17,K17,M17,O17,Q17,S17,U17,W17,Y17,AA17,AC17,AE17,AG17,AI17,AK17,AM17)","v":0},null,null,"　期に記入する。"]
["選択必修科目","教養教育科目",null,null,"人文・社会科学分野","選択科目",null,null,null,null,null,null,null,null,null,null,null,null,null,null,null,null,null,null,null,null,null,null,null,null,null,null,null,null,null,null,null,null,null,0,4,null,null,null,"※本表最下部の表の入力方法について"]
[null,null,null,null,"自然科学分野","実験科目",null,null,null,null,null,null,null,null,null,null,null,null,null,null,null,null,null,null,null,null,null,null,null,null,null,null,null,null,null,null,null,null,null,0,1,null,null,null,"　・P評価の単位数は、当該期①の欄に、"]
[null,null,null,null,null,"選択科目",null,null,null,null,null,null,null,null,null,null,null,null,null,null,null,null,null,null,null,null,null,null,null,null,null,null,null,null,null,null,null,null,null,0,2,null,null,null,"　・F評価の単位数は、当該期②の欄に、"]
[null,null,null,null,null,"基礎教育入門科目",null,null,null,null,null,null,null,null,null,null,null,null,null,null,null,null,null,null,null,null,null,null,null,null,null,null,null,null,null,null,null,null,null,0,2,null,null,null,"　・評価F科目の再履修での修得単位数は当該"]
[null,"教養活用科目",null,null,"統合Ⅰ（課題発見）",null,null,null,null,null,null,null,null,null,null,null,null,null,null,null,null,null,null,null,null,null,null,null,null,null,null,null,null,null,null,null,null,null,null,0,4,null,null,null,"　　期③の欄に入力する。なお、②には再履修"]
[null,null,null,null,"統合Ⅱ（課題解決）",null,null,null,null,null,null,null,null,null,null,null,null,null,null,null,null,null,null,null,null,null,null,null,null,null,null,null,null,null,null,null,null,null,null,0,null,null,null,null,"　　の科目は含まない。"]
[null,"選択必修科目　計",null,null,null,null,null,null,{"$f":"SUM(I18:I23)","v":0},null,{"$f":"SUM(K18:K23)","v":0},null,{"$f":"SUM(M18:M23)","v":0},null,{"$f":"SUM(O18:O23)","v":0},null,{"$f":"SUM(Q18:Q23)","v":0},null,{"$f":"SUM(S18:S23)","v":0},null,{"$f":"SUM(U18:U23)","v":0},null,{"$f":"SUM(W18:W23)","v":0},null,{"$f":"SUM(Y18:Y23)","v":0},null,{"$f":"SUM(AA18:AA23)","v":0},null,{"$f":"SUM(AC18:AC23)","v":0},null,{"$f":"SUM(AE18:AE23)","v":0},null,{"$f":"SUM(AG18:AG23)","v":0},null,{"$f":"SUM(AI18:AI23)","v":0},null,{"$f":"SUM(AK18:AK23)","v":0},null,{"$f":"SUM(AM18:AM23)","v":0},0,13,{"$f":"SUM(I24,K24,M24,O24,Q24,S24,U24,W24,Y24,AA24,AC24,AE24,AG24,AI24,AK24,AM24)","v":0},null,null,"※評価Fの科目を再履修して単位を修得した場合"]
["全科目合計",null,null,null,null,null,null,{"$f":"H17+H24","v":0},{"$f":"I17+I24","v":0},{"$f":"J17+J24","v":0},0,0,0,0,0,0,0,0,0,0,0,0,0,0,0,0,0,0,0,0,0,0,0,0,0,0,0,0,0,0,33,{"$f":"SUM(I25,K25,M25,O25,Q25,S25,U25,W25,Y25,AA25,AC25,AE25,AG25,AI25,AK25,AM25)","v":0},null,null,"　の入力方法について"]
["※","「期を増やす」欄により学年を４年間増やすことが可。",null,null,null,null,null,null,null,null,null,null,null,null,null,null,null,null,null,null,null,null,null,null,null,null,null,null,null,null,null,null,null,null,null,null,null,null,null,null,null,null,null,null,"　上記1～3の手順で入力する。"]
[null,null,null,null,null,null,null,null,null,null,null,null,null,null,null,null,null,null,null,null,null,null,null,null,null,null,null,null,null,null,null,null,null,null,null,null,null,null,null,null,null,null,null,null,"※既修得単位（D以上）の科目を再履修して単位を"]
["①【共通教育科目】評価Pの単位数",null,null,null,null,null,null,null,null,null,null,null,null,null,null,null,null,null,null,null,null,null,null,null,null,null,null,null,null,null,null,null,null,null,null,null,null,null,null,{"$f":"SUM(H28:AM28)","v":0},null,null,null,null,"　修得した場合の入力方法について"]
["②【共通教育科目】不合格（評価F）の単位数",null,null,null,null,null,null,null,null,null,null,null,null,null,null,null,null,null,null,null,null,null,null,null,null,null,null,null,null,null,null,null,null,null,null,null,null,null,null,{"$f":"SUM(H29:AM29)","v":0},null,null,null,null,"　今期の分を上記1～3の手順で入力した後、"]
["③【共通教育科目】評価F科目の再履修での修得単位数",null,null,null,null,null,null,null,null,null,null,null,null,null,null,null,null,null,null,null,null,null,null,null,null,null,null,null,null,null,null,null,null,null,null,null,null,null,null,{"$f":"SUM(H30:AM30)","v":0},null,null,null,null,"  過去の評価（黄色枠）と合計GP（灰色枠）"]
[null,null,null,null,null,null,null,null,null,null,null,null,null,null,null,null,null,null,null,null,null,null,null,null,null,null,null,null,null,null,null,null,null,null,null,null,null,null,null,null,null,null,null,null,"　を削除し、過去のオレンジ枠の合計修得単位数"]
[null,null,null,null,null,null,null,null,null,null,null,null,null,null,null,null,null,null,null,null,null,null,null,null,null,null,null,null,null,null,null,null,null,null,null,null,null,null,null,null,null,null,null,null,"　から今期再履修で修得した単位数を引いた値を"]
[null,null,null,null,null,null,null,null,null,null,null,null,null,null,null,null,null,null,null,null,null,null,null,null,null,null,null,null,null,null,null,null,null,null,null,null,null,null,null,null,null,null,null,null,"　過去のオレンジ枠の合計修得単位数に再入力する。"]
[]
[null,null,null,null,null,null,null,null,null,null,null,null,null,null,null,null,null,null,null,null,null,null,null,null,null,null,null,null,null,null,null,null,null,null,null,null,null,null,null,null,null,null,null,null,"（補足説明）"]
[null,null,null,null,null,null,null,null,null,null,null,null,null,null,null,null,null,null,null,null,null,null,null,null,null,null,null,null,null,null,null,null,null,null,null,null,null,null,null,null,null,null,null,null,"※留年した場合は「期を増やす」欄で列を増"]
[null,null,null,null,null,null,null,null,null,null,null,null,null,null,null,null,null,null,null,null,null,null,null,null,null,null,null,null,null,null,null,null,null,null,null,null,null,null,null,null,null,null,null,null,"　やす。"]

{"sheet":"単位修得状況確認表（専門教育科目）","index":4,"n_rows":90,"n_cols":51,"rows_kept":90,"cut":false,"hidden":false,"merged":[[89,0,89,6],[89,7,89,8],[89,9,89,10],[89,11,89,12],[89,13,89,14],[89,15,89,16],[89,17,89,18],[89,19,89,20],[89,21,89,22],[85,39,85,40],[89,23,89,24],[89,25,89,26],[89,27,89,28],[89,29,89,30],[89,31,89,32],[89,33,89,34],[89,35,89,36],[89,37,89,38],[88,23,88,24],[88,25,88,26],[88,27,88,28],[88,29,88,30],[88,31,88,32],[88,33,88,34],[88,35,88,36],[88,37,88,38],[87,23,87,24],[87,25,87,26],[87,27,87,28],[87,29,87,30],[87,31,87,32],[87,33,87,34],[87,35,87,36],[87,37,87,38],[88,19,88,20],[87,0,87,6],[87,19,87,20],[88,21,88,22],[88,0,88,6],[88,7,88,8],[88,9,88,10],[88,11,88,12],[88,13,88,14],[88,15,88,16],[87,21,87,22],[87,7,87,8],[87,9,87,10],[87,11,87,12],[88,17,88,18],[2,0,5,2],[6,0,11,0],[6,1,11,2],[12,0,12,6],[85,1,85,10],[87,13,87,14],[87,15,87,16],[87,17,87,18],[33,0,33,6],[35,0,64,0],[65,0,65,6],[80,0,80,6],[83,0,83,6],[84,0,84,6],[35,1,64,2],[67,0,79,0],[67,1,79,2],[3,35,3,38],[4,27,4,28],[4,29,4,30],[4,31,4,32],[4,33,4,34],[3,27,3,30],[4,37,4,38],[3,23,3,26],[4,15,4,16],[4,17,4,18],[4,19,4,20],[4,21,4,22],[4,23,4,24],[6,45,32,45],[6,46,32,46],[35,45,64,45],[35,46,64,46],[67,45,79,45],[67,46,79,46],[14,0,32,0],[14,1,32,2],[1,0,1,41],[2,39,5,39],[3,7,3,10],[3,11,3,14],[3,15,3,18],[4,9,4,10],[4,11,4,12],[4,13,4,14],[2,41,5,41],[3,19,3,22],[4,25,4,26],[2,40,5,40],[4,35,4,36],[2,7,2,38],[4,7,4,8],[3,31,3,34]]}
[null,null,null,null,null,null,null,null,null,null,null,null,null,null,null,null,null,null,null,null,null,null,null,null,null,null,null,null,null,null,null,null,null,null,null,null,null,null,null,null,null,null,null,null,null,null,null,"A"]
["単位修得状況確認表（専門教育科目）",null,null,null,null,null,null,null,null,null,null,null,null,null,null,null,null,null,null,null,null,null,null,null,null,null,null,null,null,null,null,null,null,null,null,null,null,null,null,null,null,null,null,null,"受講科目の単位入力要領（専門教育科目）",null,null,"B"]
["区分",null,null,"工 ","専","授","単","履修科目の評価およびGP",null,null,null,null,null,null,null,null,null,null,null,null,null,null,null,null,null,null,null,null,null,null,null,null,null,null,null,null,null,null,null,"取得単位数","要修得\n単位数","累積GP",null,null,"STEP１",null,null,"C"]
[null,null,null,"学 "," ","業"," ","　年次",null,null,null,"　年次",null,null,null,"　年次",null,null,null,"　年次",null,null,null,"　年次",null,null,null,"　年次",null,null,null,"　年次",null,null,null,"　年次",null,null,null,null,null,null,null,null,"当該期に受講した科目の単位を区分ごとに以下の手順で",null,null,"D"]
[null,null,null,"基",null,"科",null,"１期",null,"２期",null,"３期",null,"４期",null,"５期",null,"６期",null,"７期",null,"８期",null,"９期",null,"10期",null,"11期",null,"12期",null,"13期",null,"14期",null,"15期",null,"16期",null,null,null,null,null,null,"入力し、要修得単位数と比較して単位取得状況を把握",null,null,"F"]
[null,null,null,"礎","門","目","位","評価","合計GP","評価","合計GP","評価","合計GP","評価","合計GP","評価","合計GP","評価","合計GP","評価","合計GP","評価","合計GP","評価","合計GP","評価","合計GP","評価","合計GP","評価","合計GP","評価","合計GP","評価","合計GP","評価","合計GP","評価","合計GP",null,null,null,null,null,"する。",null,null,"P"]
["基礎教育科目","必修科目",null,"○",null,"微分積分学AⅠ",2,null,null,null,null,null,null,null,null,null,null,null,null,null,null,null,null,null,null,null,null,null,null,null,null,null,null,null,null,null,null,null,null,null,null,null,null,null,null,"必修科目","必修科目",259752611102,{"$f":"F7","v":"微分積分学AⅠ"}]
[null,null,null,"○",null,"線形代数学Ⅰ",2,null,null,null,null,null,null,null,null,null,null,null,null,null,null,null,null,null,null,null,null,null,null,null,null,null,null,null,null,null,null,null,null,null,null,null,null,null,"１．黄色枠に受講科目の評価（A,B,C,D,F,P）を入力する。",null,null,250092900001,"線形代数学Ⅰ"]
[null,null,null,"○",null,"物理学基礎AⅠ",2,null,null,null,null,null,null,null,null,null,null,null,null,null,null,null,null,null,null,null,null,null,null,null,null,null,null,null,null,null,null,null,null,null,null,null,null,null,"２．オレンジ枠に合計修得単位数を入力する。",null,null,250152511101,"物理学基礎AⅠ"]
[null,null,null,"○",null,"微分積分学AⅡ",2,null,null,null,null,null,null,null,null,null,null,null,null,null,null,null,null,null,null,null,null,null,null,null,null,null,null,null,null,null,null,null,null,null,null,null,null,null,"３．灰色枠に受講科目の合計GP（単位数×GP）を計算し、",null,null,250082600001,"微分積分学AⅡ"]
[null,null,null,"○",null,"線形代数学Ⅱ",2,null,null,null,null,null,null,null,null,null,null,null,null,null,null,null,null,null,null,null,null,null,null,null,null,null,null,null,null,null,null,null,null,null,null,null,null,null,"    その値を入力する。",null,null,250092900002,"線形代数学Ⅱ"]
[null,null,null,"○",null,"物理学基礎AⅡ",2,null,null,null,null,null,null,null,null,null,null,null,null,null,null,null,null,null,null,null,null,null,null,null,null,null,null,null,null,null,null,null,null,null,null,null,null,null,"　（評価とGPの関係：A=4,B=3,C=2,D=1,F=0,PはGPの該当",null,null,259742611101,"物理学基礎AⅡ"]
["合計",null,null,null,null,null,null,null,{"$f":"SUM(I7:I12)","v":0},null,{"$f":"SUM(K7:K12)","v":0},null,{"$f":"SUM(M7:M12)","v":0},null,{"$f":"SUM(O7:O12)","v":0},null,{"$f":"SUM(Q7:Q12)","v":0},null,{"$f":"SUM(S7:S12)","v":0},null,{"$f":"SUM(U7:U12)","v":0},null,{"$f":"SUM(W7:W12)","v":0},null,{"$f":"SUM(Y7:Y12)","v":0},null,{"$f":"SUM(AA7:AA12)","v":0},null,{"$f":"SUM(AC7:AC12)","v":0},null,{"$f":"SUM(AE7:AE12)","v":0},null,{"$f":"SUM(AG7:AG12)","v":0},null,{"$f":"SUM(AI7:AI12)","v":0},null,{"$f":"SUM(AK7:AK12)","v":0},null,{"$f":"SUM(AM7:AM12)","v":0},{"$f":"SUM(H13,J13,L13,N13,P13,R13,T13,V13,X13,Z13,AB13,AD13,AF13,AH13,AJ13,AL13)","v":0},12,{"$f":"SUM(I13,K13,M13,O13,Q13,S13,U13,W13,Y13,AA13,AC13,AE13,AG13,AI13,AK13,AM13)","v":0},null,null,"　　外なので合計GP欄は空欄とする。）",null,null,250092900003,0]
[null,null,null,null,null,null,null,null,null,null,null,null,null,null,null,null,null,null,null,null,null,null,null,null,null,null,null,null,null,null,null,null,null,null,null,null,null,null,null,null,null,null,null,null,"４．修得単位数を要修得単位数と比較して単位取得状況"]
["専門科目","必修科目",null," ","○","プログラミング序論演習I",1,null,null,null,null,null,null,null,null,null,null,null,null,null,null,null,null,null,null,null,null,null,null,null,null,null,null,null,null,null,null,null,null,null,null,null,null,null,"    を把握する。",null,null,250092900004,{"$f":"F15","v":"プログラミング序論演習I"}]
[null,null,null,"○"," ","情報生体システム工学基礎",2,null,null,null,null,null,null,null,null,null,null,null,null,null,null,null,null,null,null,null,null,null,null,null,null,null,null,null,null,null,null,null,null,null,null,null,null,null,null,null,null,259742611102,"情報生体システム工学基礎"]
[null,null,null,null,"○","プログラミング序論演習II",1,null,null,null,null,null,null,null,null,null,null,null,null,null,null,null,null,null,null,null,null,null,null,null,null,null,null,null,null,null,null,null,null,null,null,null,null,null,"※期をまたがって開講される科目は、成績の出された期に",null,null,259752611108,"プログラミング序論演習II"]
[null,null,null,"○"," ","応用数学I",2,null,null,null,null,null,null,null,null,null,null,null,null,null,null,null,null,null,null,null,null,null,null,null,null,null,null,null,null,null,null,null,null,null,null,null,null,null,"  記入する。例えば通年の場合、後期に記入する。",null,null,250092900006,"応用数学I"]
[null,null,null,"○",null,"応用数学I演習",1,null,null,null,null,null,null,null,null,null,null,null,null,null,null,null,null,null,null,null,null,null,null,null,null,null,null,null,null,null,null,null,null,null,null,null,null,null,"※本表最下部の表の入力方法について",null,null,250092900007,"応用数学I演習"]
[null,null,null," ","○","情報生体ｼｽﾃﾑ工学実験I",1,null,null,null,null,null,null,null,null,null,null,null,null,null,null,null,null,null,null,null,null,null,null,null,null,null,null,null,null,null,null,null,null,null,null,null,null,null,"　・P評価の単位数は当該期①の欄に、"]
[null,null,null,"○"," ","応用数学II",2,null,null,null,null,null,null,null,null,null,null,null,null,null,null,null,null,null,null,null,null,null,null,null,null,null,null,null,null,null,null,null,null,null,null,null,null,null,"　・F評価の単位数は当該期②の欄に、"]
[null,null,null,"○",null,"応用数学II演習",1,null,null,null,null,null,null,null,null,null,null,null,null,null,null,null,null,null,null,null,null,null,null,null,null,null,null,null,null,null,null,null,null,null,null,null,null,null,"　・評価F科目の再履修での修得単位数は当該期③の欄に"]
[null,null,null,null,"○","プログラミング言語I",2,null,null,null,null,null,null,null,null,null,null,null,null,null,null,null,null,null,null,null,null,null,null,null,null,null,null,null,null,null,null,null,null,null,null,null,null,null,"　　入力する。なお、②には再履修の科目は含まない。"]
[null,null,null,null,"○","プログラミング言語I演習",1,null,null,null,null,null,null,null,null,null,null,null,null,null,null,null,null,null,null,null,null,null,null,null,null,null,null,null,null,null,null,null,null,null,null,null,null,null,"※評価Fの科目を再履修して単位を修得した場合の入力方"]
[null,null,null," ","○","情報生体ｼｽﾃﾑ工学実験II",1,null,null,null,null,null,null,null,null,null,null,null,null,null,null,null,null,null,null,null,null,null,null,null,null,null,null,null,null,null,null,null,null,null,null,null,null,null,"  法について"]
[null,null,null," ","○","情報生体ｼｽﾃﾑ工学実験III",2,null,null,null,null,null,null,null,null,null,null,null,null,null,null,null,null,null,null,null,null,null,null,null,null,null,null,null,null,null,null,null,null,null,null,null,null,null,"  上記１～３の手順で入力する。"]
[null,null,null,null,"○","システム工学英語I",2,null,null,null,null,null,null,null,null,null,null,null,null,null,null,null,null,null,null,null,null,null,null,null,null,null,null,null,null,null,null,null,null,null,null,null,null,null,"※既修得単位（D以上）の科目を再履修して単位を"]
[null,null,null,null,"○","エンジニアリングデザイン",2,null,null,null,null,null,null,null,null,null,null,null,null,null,null,null,null,null,null,null,null,null,null,null,null,null,null,null,null,null,null,null,null,null,null,null,null,null,"　修得した場合の入力方法について"]
[null,null,null,null,"○","システム工学英語II",2,null,null,null,null,null,null,null,null,null,null,null,null,null,null,null,null,null,null,null,null,null,null,null,null,null,null,null,null,null,null,null,null,null,null,null,null,null,"　今期の分を上記1～3の手順で入力した後、"]
[null,null,null," ","○","情　報　倫　理　学",2,null,null,null,null,null,null,null,null,null,null,null,null,null,null,null,null,null,null,null,null,null,null,null,null,null,null,null,null,null,null,null,null,null,null,null,null,null,"  過去の評価（黄色枠）と合計GP（灰色枠）"]
[null,null,null,null,"○","情報セキュリティ",2,null,null,null,null,null,null,null,null,null,null,null,null,null,null,null,null,null,null,null,null,null,null,null,null,null,null,null,null,null,null,null,null,null,null,null,null,null,"　を削除し、過去のオレンジ枠の合計修得単位数"]
[null,null,null," ","○","情報生体ｼｽﾃﾑ工学実験IV",2,null,null,null,null,null,null,null,null,null,null,null,null,null,null,null,null,null,null,null,null,null,null,null,null,null,null,null,null,null,null,null,null,null,null,null,null,null,"　から今期再履修で修得した単位数を引いた値を"]
[null,null,null," ","○","卒　　業　　研　　究",6,null,null,null,null,null,null,null,null,null,null,null,null,null,null,null,null,null,null,null,null,null,null,null,null,null,null,null,null,null,null,null,null,null,null,null,null,null,"　過去のオレンジ枠の合計修得単位数に再入力する。"]
["合計",null,null,null,null,null,null,null,{"$f":"SUM(I15:I33)","v":0},null,{"$f":"SUM(K15:K33)","v":0},null,{"$f":"SUM(M15:M33)","v":0},null,{"$f":"SUM(O15:O33)","v":0},null,{"$f":"SUM(Q15:Q33)","v":0},null,{"$f":"SUM(S15:S33)","v":0},null,{"$f":"SUM(U15:U33)","v":0},null,{"$f":"SUM(W15:W33)","v":0},null,{"$f":"SUM(Y15:Y33)","v":0},null,{"$f":"SUM(AA15:AA33)","v":0},null,{"$f":"SUM(AC15:AC33)","v":0},null,{"$f":"SUM(AE15:AE33)","v":0},null,{"$f":"SUM(AG15:AG33)","v":0},null,{"$f":"SUM(AI15:AI33)","v":0},null,{"$f":"SUM(AK15:AK33)","v":0},null,{"$f":"SUM(AM15:AM33)","v":0},{"$f":"SUM(H34,J34,L34,N34,P34,R34,T34,V34,X34,Z34,AB34,AD34,AF34,AH34,AJ34,AL34)","v":0},35,{"$f":"SUM(I34,K34,M34,O34,Q34,S34,U34,W34,Y34,AA34,AC34,AE34,AG34,AI34,AK34,AM34)","v":0}]
[null,null,null,null,null,null,null,null,null,null,null,null,null,null,null,null,null,null,null,null,null,null,null,null,null,null,null,null,null,null,null,null,null,null,null,null,null,null,null,null,null,null,null,null,"STEP２"]
["専門科目","選択科目A群",null,"○",null,"確率統計序論",1,null,null,null,null,null,null,null,null,null,null,null,null,null,null,null,null,null,null,null,null,null,null,null,null,null,null,null,null,null,null,null,null,null,null,null,null,null,"累積GPAの値を成績原簿と一致するかチェックする。","情報基礎科目群","選択科目A群",259752613116,{"$f":"F36","v":"確率統計序論"}]
[null,null,null,null,"○","情　　報　　数　　学",2,null,null,null,null,null,null,null,null,null,null,null,null,null,null,null,null,null,null,null,null,null,null,null,null,null,null,null,null,null,null,null,null,null,null,null,null,null,"区分ごとの単位修得状況の入力が終了した後に、シート"]
[null,null,null," ","○","数値解析",2,null,null,null,null,null,null,null,null,null,null,null,null,null,null,null,null,null,null,null,null,null,null,null,null,null,null,null,null,null,null,null,null,null,null,null,null,null,"右下赤枠の「累積GPA」の値が、成績原簿に記載されて",null,null,259742612102,"数値解析"]
[null,null,null," ","○","電気回路学及び演習",3,null,null,null,null,null,null,null,null,null,null,null,null,null,null,null,null,null,null,null,null,null,null,null,null,null,null,null,null,null,null,null,null,null,null,null,null,null,"いる累積GPAの値と一致しているかチェックし、一致",null,null,250222000001,"電気回路学及び演習"]
[null,null,null," ","○","情　報　論　理　回　路",2,null,null,null,null,null,null,null,null,null,null,null,null,null,null,null,null,null,null,null,null,null,null,null,null,null,null,null,null,null,null,null,null,null,null,null,null,null,"していない場合はSTEP１に戻り、入力値に間違いが",null,null,259752611105,"情　報　論　理　回　路"]
[null,null,null," ","○","情　　報　　理　　論",2,null,null,null,null,null,null,null,null,null,null,null,null,null,null,null,null,null,null,null,null,null,null,null,null,null,null,null,null,null,null,null,null,null,null,null,null,null,"ないか見直し、正しく入力する。",null,null,259752611103,"情　　報　　理　　論"]
[null,null,null," ","○","計　算　機　工　学",2,null,null,null,null,null,null,null,null,null,null,null,null,null,null,null,null,null,null,null,null,null,null,null,null,null,null,null,null,null,null,null,null,null,null,null,null,null,null,null,null,250226000101,"計　算　機　工　学"]
[null,null,null,null,"○","電気磁気学及び演習",3]
[null,null,null,null,"○","アルゴリズムとデータ構造",2,null,null,null,null,null,null,null,null,null,null,null,null,null,null,null,null,null,null,null,null,null,null,null,null,null,null,null,null,null,null,null,null,null,null,null,null,null,"（補足説明）",null,null,259752611101,{"$f":"F44","v":"アルゴリズムとデータ構造"}]
[null,null,null," ","○","プログラミング言語II",2,null,null,null,null,null,null,null,null,null,null,null,null,null,null,null,null,null,null,null,null,null,null,null,null,null,null,null,null,null,null,null,null,null,null,null,null,null,"※留年した場合は「期を増やす」欄で列を増やす。",null,null,259752613126,"プログラミング言語II"]
[null,null,null," ","○","システム工学",2,null,null,null,null,null,null,null,null,null,null,null,null,null,null,null,null,null,null,null,null,null,null,null,null,null,null,null,null,null,null,null,null,null,null,null,null,null,"※評価Pの科目については、GPおよびGPAの計算に含ま",null,null,259652616115,"システム工学"]
[null,null,null," ","○","生体機構学",2,null,null,null,null,null,null,null,null,null,null,null,null,null,null,null,null,null,null,null,null,null,null,null,null,null,null,null,null,null,null,null,null,null,null,null,null,null,"　ない。しかしながら、進級・卒業要件の累積単位数",null,null,250092900018,"生体機構学"]
[null,null,null,null,"○","計算機ネットワーク",2,null,null,null,null,null,null,null,null,null,null,null,null,null,null,null,null,null,null,null,null,null,null,null,null,null,null,null,null,null,null,null,null,null,null,null,null,null,"　には含まれることがあるので、標準履修課程表で確認",null,null,259752613125,"計算機ネットワーク"]
[null,null,null,null,"○","ソフトウェア工学",2,null,null,null,null,null,null,null,null,null,null,null,null,null,null,null,null,null,null,null,null,null,null,null,null,null,null,null,null,null,null,null,null,null,null,null,null,null,"　すること。（インターンシップ等）",null,null,259752613134,"ソフトウェア工学","「エ」が異なるためヒットせず","ソフトウエア工学 259752613134"]
[null,null,null," ","○","オペレーティングシステム論",2,null,null,null,null,null,null,null,null,null,null,null,null,null,null,null,null,null,null,null,null,null,null,null,null,null,null,null,null,null,null,null,null,null,null,null,null,null,"※随意科目については、GPおよびGPAの計算に含まれない。",null,null,259752613127,"オペレーティングシステム論"]
[null,null,null,null,"○","計測工学",2,null,null,null,null,null,null,null,null,null,null,null,null,null,null,null,null,null,null,null,null,null,null,null,null,null,null,null,null,null,null,null,null,null,null,null,null,null,"　また、進級・卒業要件にも含まれない。",null,null,259752613103,"計測工学"]
[null,null,null," ","○","人工知能",2,null,null,null,null,null,null,null,null,null,null,null,null,null,null,null,null,null,null,null,null,null,null,null,null,null,null,null,null,null,null,null,null,null,null,null,null,null,null,null,null,259752613106,"人工知能"]
[null,null,null," ","○","情報通信工学",2,null,null,null,null,null,null,null,null,null,null,null,null,null,null,null,null,null,null,null,null,null,null,null,null,null,null,null,null,null,null,null,null,null,null,null,null,null,null,null,null,250092900015,"情報通信工学"]
[null,null,null,null,"○","マルチメディア",2,null,null,null,null,null,null,null,null,null,null,null,null,null,null,null,null,null,null,null,null,null,null,null,null,null,null,null,null,null,null,null,null,null,null,null,null,null,null,null,null,250092900016,"マルチメディア"]
[null,null,null,null,"○","生体情報工学I",2,null,null,null,null,null,null,null,null,null,null,null,null,null,null,null,null,null,null,null,null,null,null,null,null,null,null,null,null,null,null,null,null,null,null,null,null,null,null,null,null,259752613108,"生体情報工学I"]
[null,null,null,null,"○","電子回路",2,null,null,null,null,null,null,null,null,null,null,null,null,null,null,null,null,null,null,null,null,null,null,null,null,null,null,null,null,null,null,null,null,null,null,null,null,null,null,null,null,250226013001,"電子回路"]
[null,null,null,null,"○","計算科学",2,null,null,null,null,null,null,null,null,null,null,null,null,null,null,null,null,null,null,null,null,null,null,null,null,null,null,null,null,null,null,null,null,null,null,null,null,null,null,null,null,250226013001,{"$f":"F57","v":"計算科学"}]
[null,null,null," ","○","ヒューマンインターフェイス",2]
[null,null,null," ","○","プログラミング言語II演習",1,null,null,null,null,null,null,null,null,null,null,null,null,null,null,null,null,null,null,null,null,null,null,null,null,null,null,null,null,null,null,null,null,null,null,null,null,null,null,null,null,250092900014,"プログラミング言語II演習"]
[null,null,null," ","○","オートマトンと言語理論",2,null,null,null,null,null,null,null,null,null,null,null,null,null,null,null,null,null,null,null,null,null,null,null,null,null,null,null,null,null,null,null,null,null,null,null,null,null,null,null,null,259752613137,"オートマトンと言語理論"]
[null,null,null,null,"○","自然言語処理",2,null,null,null,null,null,null,null,null,null,null,null,null,null,null,null,null,null,null,null,null,null,null,null,null,null,null,null,null,null,null,null,null,null,null,null,null,null,null,null,null,259752613118,"自然言語処理"]
[null,null,null," ","○","画像情報工学",2,null,null,null,null,null,null,null,null,null,null,null,null,null,null,null,null,null,null,null,null,null,null,null,null,null,null,null,null,null,null,null,null,null,null,null,null,null,null,null,null,259752613122,"画像情報工学"]
[null,null,null," ","○","電気化学",2,null,null,null,null,null,null,null,null,null,null,null,null,null,null,null,null,null,null,null,null,null,null,null,null,null,null,null,null,null,null,null,null,null,null,null,null,null,null,null,null,259552227104,{"$f":"F63","v":"電気化学"}]
[null,null,null," ","○","生体情報工学II",2,null,null,null,null,null,null,null,null,null,null,null,null,null,null,null,null,null,null,null,null,null,null,null,null,null,null,null,null,null,null,null,null,null,null,null,null,null,null,null,null,259752613109,"生体情報工学II"]
[null,null,null," ","○","データベース",2,null,null,null,null,null,null,null,null,null,null,null,null,null,null,null,null,null,null,null,null,null,null,null,null,null,null,null,null,null,null,null,null,null,null,null,null,null,null,null,null,259752613101,"データベース"]
["合計",null,null,null,null,null,null,null,{"$f":"SUM(I36:I65)","v":0},null,{"$f":"SUM(K36:K65)","v":0},null,{"$f":"SUM(M36:M65)","v":0},null,{"$f":"SUM(O36:O65)","v":0},null,{"$f":"SUM(Q36:Q65)","v":0},null,{"$f":"SUM(S36:S65)","v":0},null,{"$f":"SUM(U36:U65)","v":0},null,{"$f":"SUM(W36:W65)","v":0},null,{"$f":"SUM(Y36:Y65)","v":0},null,{"$f":"SUM(AA36:AA65)","v":0},null,{"$f":"SUM(AC36:AC65)","v":0},null,{"$f":"SUM(AE36:AE65)","v":0},null,{"$f":"SUM(AG36:AG65)","v":0},null,{"$f":"SUM(AI36:AI65)","v":0},null,{"$f":"SUM(AK36:AK65)","v":0},null,{"$f":"SUM(AM36:AM65)","v":0},{"$f":"SUM(H66,J66,L66,N66,P66,R66,T66,V66,X66,Z66,AB66,AD66,AF66,AH66,AJ66,AL66)","v":0},42,{"$f":"SUM(I66,K66,M66,O66,Q66,S66,U66,W66,Y66,AA66,AC66,AE66,AG66,AI66,AK66,AM66)","v":0}]
[]
["専門科目","選択科目B群",null,null,"○","化学基礎",2,null,null,null,null,null,null,null,null,null,null,null,null,null,null,null,null,null,null,null,null,null,null,null,null,null,null,null,null,null,null,null,null,null,null,null,null,null,null,null,null,250099110002,{"$f":"F68","v":"化学基礎"}]
[null,null,null,null,"○","地球科学基礎",2,null,null,null,null,null,null,null,null,null,null,null,null,null,null,null,null,null,null,null,null,null,null,null,null,null,null,null,null,null,null,null,null,null,null,null,null,null,null,null,null,250299110001,"地球科学基礎"]
[null,null,null," ","○","情報生体システム工学\n　　　　　　　　　特別講義I",1,null,null,null,null,null,null,null,null,null,null,null,null,null,null,null,null,null,null,null,null,null,null,null,null,null,null,null,null,null,null,null,null,null,null,null,null,null,null,null,null,250092900025,"情報生体システム工学\n　　　　　　　　　特別講義I"]
[null,null,null," ","○","情報生体システム工学\n　　　　　　　　　特別講義II",1,null,null,null,null,null,null,null,null,null,null,null,null,null,null,null,null,null,null,null,null,null,null,null,null,null,null,null,null,null,null,null,null,null,null,null,null,null,null,null,null,250092900026,"情報生体システム工学\n　　　　　　　　　特別講義II"]
[null,null,null," ","○","原子力・放射線と環境",2,null,null,null,null,null,null,null,null,null,null,null,null,null,null,null,null,null,null,null,null,null,null,null,null,null,null,null,null,null,null,null,null,null,null,null,null,null,null,null,null,250042099101,"原子力・放射線と環境"]
[null,null,null," ","○","生　産　工　学　論",2,null,null,null,null,null,null,null,null,null,null,null,null,null,null,null,null,null,null,null,null,null,null,null,null,null,null,null,null,null,null,null,null,null,null,null,null,null,null,null,null,250299200001,"生　産　工　学　論"]
[null,null,null," ","○","エレクトロニクス論",2,null,null,null,null,null,null,null,null,null,null,null,null,null,null,null,null,null,null,null,null,null,null,null,null,null,null,null,null,null,null,null,null,null,null,null,null,null,null,null,null,250228100002,"エレクトロニクス論"]
[null,null,null," ","○","材　料　科　学　論",2,null,null,null,null,null,null,null,null,null,null,null,null,null,null,null,null,null,null,null,null,null,null,null,null,null,null,null,null,null,null,null,null,null,null,null,null,null,null,null,null,250228100005,"材　料　科　学　論"]
[null,null,null," ","○","科　学　技　術　論",2,null,null,null,null,null,null,null,null,null,null,null,null,null,null,null,null,null,null,null,null,null,null,null,null,null,null,null,null,null,null,null,null,null,null,null,null,null,null,null,null,250228100006,"科　学　技　術　論"]
[null,null,null," ","○","環境工学論",2,null,null,null,null,null,null,null,null,null,null,null,null,null,null,null,null,null,null,null,null,null,null,null,null,null,null,null,null,null,null,null,null,null,null,null,null,null,null,null,null,250228100004,"環境工学論"]
[null,null,null," ","○","エネルギー工学論",2,null,null,null,null,null,null,null,null,null,null,null,null,null,null,null,null,null,null,null,null,null,null,null,null,null,null,null,null,null,null,null,null,null,null,null,null,null,null,null,null,250228100003,"エネルギー工学論"]
[null,null,null,null,"○","工場見学",1,null,null,null,null,null,null,null,null,null,null,null,null,null,null,null,null,null,null,null,null,null,null,null,null,null,null,null,null,null,null,null,null,null,null,null,null,null,null,null,null,259752613401,"工場見学"]
[null,null,null,null,"○","インターンシップ",1,null,null,null,null,null,null,null,null,null,null,null,null,null,null,null,null,null,null,null,null,null,null,null,null,null,null,null,null,null,null,null,null,null,null,null,null,null,null,null,null,250223010041,"インターンシップ"]
["合計",null,null,null,null,null,null,null,{"$f":"SUM(I68:I80)","v":0},null,{"$f":"SUM(K68:K80)","v":0},null,{"$f":"SUM(M68:M80)","v":0},null,{"$f":"SUM(O68:O80)","v":0},null,{"$f":"SUM(Q68:Q80)","v":0},null,{"$f":"SUM(S68:S80)","v":0},null,{"$f":"SUM(U68:U80)","v":0},null,{"$f":"SUM(W68:W80)","v":0},null,{"$f":"SUM(Y68:Y80)","v":0},null,{"$f":"SUM(AA68:AA80)","v":0},null,{"$f":"SUM(AC68:AC80)","v":0},null,{"$f":"SUM(AE68:AE80)","v":0},null,{"$f":"SUM(AG68:AG80)","v":0},null,{"$f":"SUM(AI68:AI80)","v":0},null,{"$f":"SUM(AK68:AK80)","v":0},null,{"$f":"SUM(AM68:AM80)","v":0},{"$f":"SUM(H81,J81,L81,N81,P81,R81,T81,V81,X81,Z81,AB81,AD81,AF81,AH81,AJ81,AL81)","v":0},4,{"$f":"SUM(I81,K81,M81,O81,Q81,S81,U81,W81,Y81,AA81,AC81,AE81,AG81,AI81,AK81,AM81)","v":0}]
[]
[]
["専門教育科目合計（単位数とGP）",null,null,null,null,null,null,{"$f":"SUM(H13,H34,H66,H81)","v":0},0,0,0,0,0,0,0,0,0,0,0,0,0,0,0,0,0,0,0,0,0,0,0,0,0,0,0,0,0,0,0,{"$f":"SUM(H84,J84,L84,N84,P84,R84,T84,V84,X84,Z84,AB84,AD84,AF84,AH84,AJ84,AL84)","v":0},93,{"$f":"SUM(I84,K84,M84,O84,Q84,S84,U84,W84,Y84,AA84,AC84,AE84,AG84,AI84,AK84,AM84)","v":0}]
["(共通＋専門)教育科目合計（単位数とGP）",null,null,null,null,null,null,{"$f":"'単位修得状況確認表（共通教育科目，外国人留学生）'!H25+H84","v":0},{"$f":"'単位修得状況確認表（共通教育科目，外国人留学生）'!I25+I84","v":0},{"$f":"'単位修得状況確認表（共通教育科目，外国人留学生）'!J25+J84","v":0},{"$f":"'単位修得状況確認表（共通教育科目，外国人留学生）'!K25+K84","v":0},{"$f":"'単位修得状況確認表（共通教育科目，外国人留学生）'!L25+L84","v":0},{"$f":"'単位修得状況確認表（共通教育科目，外国人留学生）'!M25+M84","v":0},{"$f":"'単位修得状況確認表（共通教育科目，外国人留学生）'!N25+N84","v":0},{"$f":"'単位修得状況確認表（共通教育科目，外国人留学生）'!O25+O84","v":0},{"$f":"'単位修得状況確認表（共通教育科目，外国人留学生）'!P25+P84","v":0},{"$f":"'単位修得状況確認表（共通教育科目，外国人留学生）'!Q25+Q84","v":0},{"$f":"'単位修得状況確認表（共通教育科目，外国人留学生）'!R25+R84","v":0},{"$f":"'単位修得状況確認表（共通教育科目，外国人留学生）'!S25+S84","v":0},{"$f":"'単位修得状況確認表（共通教育科目，外国人留学生）'!T25+T84","v":0},{"$f":"'単位修得状況確認表（共通教育科目，外国人留学生）'!U25+U84","v":0},{"$f":"'単位修得状況確認表（共通教育科目，外国人留学生）'!V25+V84","v":0},{"$f":"'単位修得状況確認表（共通教育科目，外国人留学生）'!W25+W84","v":0},{"$f":"'単位修得状況確認表（共通教育科目，外国人留学生）'!X25+X84","v":0},{"$f":"'単位修得状況確認表（共通教育科目，外国人留学生）'!Y25+Y84","v":0},{"$f":"'単位修得状況確認表（共通教育科目，外国人留学生）'!Z25+Z84","v":0},{"$f":"'単位修得状況確認表（共通教育科目，外国人留学生）'!AA25+AA84","v":0},{"$f":"'単位修得状況確認表（共通教育科目，外国人留学生）'!AB25+AB84","v":0},{"$f":"'単位修得状況確認表（共通教育科目，外国人留学生）'!AC25+AC84","v":0},{"$f":"'単位修得状況確認表（共通教育科目，外国人留学生）'!AD25+AD84","v":0},{"$f":"'単位修得状況確認表（共通教育科目，外国人留学生）'!AE25+AE84","v":0},{"$f":"'単位修得状況確認表（共通教育科目，外国人留学生）'!AF25+AF84","v":0},{"$f":"'単位修得状況確認表（共通教育科目，外国人留学生）'!AG25+AG84","v":0},{"$f":"'単位修得状況確認表（共通教育科目，外国人留学生）'!AH25+AH84","v":0},{"$f":"'単位修得状況確認表（共通教育科目，外国人留学生）'!AI25+AI84","v":0},{"$f":"'単位修得状況確認表（共通教育科目，外国人留学生）'!AJ25+AJ84","v":0},{"$f":"'単位修得状況確認表（共通教育科目，外国人留学生）'!AK25+AK84","v":0},{"$f":"'単位修得状況確認表（共通教育科目，外国人留学生）'!AL25+AL84","v":0},{"$f":"'単位修得状況確認表（共通教育科目，外国人留学生）'!AM25+AM84","v":0},{"$f":"SUM(H85,J85,L85,N85,P85,R85,T85,V85,X85,Z85,AB85,AD85,AF85,AH85,AJ85,AL85)","v":0},126,{"$f":"SUM(I85,K85,M85,O85,Q85,S85,U85,W85,Y85,AA85,AC85,AE85,AG85,AI85,AK85,AM85)","v":0}]
["※","「期を増やす」欄により学年を４年間増やすことが可。",null,null,null,null,null,null,null,null,null,null,null,null,null,null,null,null,null,null,null,null,null,null,null,null,null,null,null,null,null,null,null,null,null,null,null,null,null,"累積GPA",null,{"$f":"IF(AN85-AN88>0,AP85/(AN85-AN88-'単位修得状況確認表（共通教育科目，外国人留学生）'!AN28+AN89+'単位修得状況確認表（共通教育科目，外国人留学生）'!AN29-AN90-'単位修得状況確認表（共通教育科目，外国人留学生）'!AN30),\"\")","v":""}]
[]
["①【専門教育科目】評価Pの単位数",null,null,null,null,null,null,null,null,null,null,null,null,null,null,null,null,null,null,null,null,null,null,null,null,null,null,null,null,null,null,null,null,null,null,null,null,null,null,{"$f":"SUM(H88:AM88)","v":0}]
["②【専門教育科目】不合格（評価F）の単位数",null,null,null,null,null,null,null,null,null,null,null,null,null,null,null,null,null,null,null,null,null,null,null,null,null,null,null,null,null,null,null,null,null,null,null,null,null,null,{"$f":"SUM(H89:AM89)","v":0}]
["③【専門教育科目】評価F科目の再履修での修得単位数",null,null,null,null,null,null,null,null,null,null,null,null,null,null,null,null,null,null,null,null,null,null,null,null,null,null,null,null,null,null,null,null,null,null,null,null,null,null,{"$f":"SUM(H90:AM90)","v":0}]

{"sheet":"累積グラフ","index":5,"n_rows":239,"n_cols":8,"rows_kept":239,"cut":false,"hidden":false,"merged":[[81,2,81,3],[3,6,3,7],[3,2,3,3],[3,4,3,5],[42,2,42,3],[42,4,42,5]]}
[]
[null,"共通教育科目（必修科目）"]
[]
[null,null,"初年次教育科目",null,"ｸﾞﾛｰﾊﾞﾙ教育科目",null,"日本語・日本事情科目"]
[null,null,"取得単位数","累積取得単位数","取得単位数","累積取得単位数","取得単位数","累積取得単位数"]
[null,"1期終了時",{"$f":"SUM('単位修得状況確認表（共通教育科目，外国人留学生）'!H$7:H$12)","v":0},{"$f":"SUM(C$6:C6)","v":0},{"$f":"SUM('単位修得状況確認表（共通教育科目，外国人留学生）'!H$13:H$14)","v":0},{"$f":"SUM(E$6:E6)","v":0},{"$f":"SUM('単位修得状況確認表（共通教育科目，外国人留学生）'!H$15:H$16)","v":0},{"$f":"SUM(G$6:G6)","v":0}]
[null,"2期終了時",{"$f":"SUM('単位修得状況確認表（共通教育科目，外国人留学生）'!J$7:J$12)","v":0},{"$f":"SUM(C$6:C7)","v":0},{"$f":"SUM('単位修得状況確認表（共通教育科目，外国人留学生）'!J$13:J$14)","v":0},{"$f":"SUM(E$6:E7)","v":0},{"$f":"SUM('単位修得状況確認表（共通教育科目，外国人留学生）'!J$15:J$16)","v":0},{"$f":"SUM(G$6:G7)","v":0}]
[null,"3期終了時",{"$f":"SUM('単位修得状況確認表（共通教育科目，外国人留学生）'!L$7:L$12)","v":0},{"$f":"SUM(C$6:C8)","v":0},{"$f":"SUM('単位修得状況確認表（共通教育科目，外国人留学生）'!L$13:L$14)","v":0},{"$f":"SUM(E$6:E8)","v":0},{"$f":"SUM('単位修得状況確認表（共通教育科目，外国人留学生）'!L$15:L$16)","v":0},{"$f":"SUM(G$6:G8)","v":0}]
[null,"4期終了時",{"$f":"SUM('単位修得状況確認表（共通教育科目，外国人留学生）'!N$7:N$12)","v":0},{"$f":"SUM(C$6:C9)","v":0},{"$f":"SUM('単位修得状況確認表（共通教育科目，外国人留学生）'!N$13:N$14)","v":0},{"$f":"SUM(E$6:E9)","v":0},{"$f":"SUM('単位修得状況確認表（共通教育科目，外国人留学生）'!N$15:N$16)","v":0},{"$f":"SUM(G$6:G9)","v":0}]
[null,"5期終了時",{"$f":"SUM('単位修得状況確認表（共通教育科目，外国人留学生）'!P$7:P$12)","v":0},{"$f":"SUM(C$6:C10)","v":0},{"$f":"SUM('単位修得状況確認表（共通教育科目，外国人留学生）'!P$13:P$14)","v":0},{"$f":"SUM(E$6:E10)","v":0},{"$f":"SUM('単位修得状況確認表（共通教育科目，外国人留学生）'!P$15:P$16)","v":0},{"$f":"SUM(G$6:G10)","v":0}]
[null,"6期終了時",{"$f":"SUM('単位修得状況確認表（共通教育科目，外国人留学生）'!R$7:R$12)","v":0},{"$f":"SUM(C$6:C11)","v":0},{"$f":"SUM('単位修得状況確認表（共通教育科目，外国人留学生）'!R$13:R$14)","v":0},{"$f":"SUM(E$6:E11)","v":0},{"$f":"SUM('単位修得状況確認表（共通教育科目，外国人留学生）'!R$15:R$16)","v":0},{"$f":"SUM(G$6:G11)","v":0}]
[null,"7期終了時",{"$f":"SUM('単位修得状況確認表（共通教育科目，外国人留学生）'!T$7:T$12)","v":0},{"$f":"SUM(C$6:C12)","v":0},{"$f":"SUM('単位修得状況確認表（共通教育科目，外国人留学生）'!T$13:T$14)","v":0},{"$f":"SUM(E$6:E12)","v":0},{"$f":"SUM('単位修得状況確認表（共通教育科目，外国人留学生）'!T$15:T$16)","v":0},{"$f":"SUM(G$6:G12)","v":0}]
[null,"8期終了時",{"$f":"SUM('単位修得状況確認表（共通教育科目，外国人留学生）'!V$7:V$12)","v":0},{"$f":"SUM(C$6:C13)","v":0},{"$f":"SUM('単位修得状況確認表（共通教育科目，外国人留学生）'!V$13:V$14)","v":0},{"$f":"SUM(E$6:E13)","v":0},{"$f":"SUM('単位修得状況確認表（共通教育科目，外国人留学生）'!V$15:V$16)","v":0},{"$f":"SUM(G$6:G13)","v":0}]
[null,"9期終了時",{"$f":"SUM('単位修得状況確認表（共通教育科目，外国人留学生）'!X$7:X$12)","v":0},{"$f":"IF(SUM($C197:$C$204)=0,\"\",SUM(C$6:C14))","v":""},{"$f":"SUM('単位修得状況確認表（共通教育科目，外国人留学生）'!X$13:X$14)","v":0},{"$f":"IF(SUM($C197:$C$204)=0,\"\",SUM(E$6:E14))","v":""},{"$f":"SUM('単位修得状況確認表（共通教育科目，外国人留学生）'!X$15:X$16)","v":0},{"$f":"IF(SUM($C197:$C$204)=0,\"\",SUM(G$6:G14))","v":""}]
[null,"10期終了時",{"$f":"SUM('単位修得状況確認表（共通教育科目，外国人留学生）'!Z$7:Z$12)","v":0},{"$f":"IF(SUM($C198:$C$204)=0,\"\",SUM(C$6:C15))","v":""},{"$f":"SUM('単位修得状況確認表（共通教育科目，外国人留学生）'!Z$13:Z$14)","v":0},{"$f":"IF(SUM($C198:$C$204)=0,\"\",SUM(E$6:E15))","v":""},{"$f":"SUM('単位修得状況確認表（共通教育科目，外国人留学生）'!Z$15:Z$16)","v":0},{"$f":"IF(SUM($C198:$C$204)=0,\"\",SUM(G$6:G15))","v":""}]
[null,"11期終了時",{"$f":"SUM('単位修得状況確認表（共通教育科目，外国人留学生）'!AB$7:AB$12)","v":0},{"$f":"IF(SUM($C199:$C$204)=0,\"\",SUM(C$6:C16))","v":""},{"$f":"SUM('単位修得状況確認表（共通教育科目，外国人留学生）'!AB$13:AB$14)","v":0},{"$f":"IF(SUM($C199:$C$204)=0,\"\",SUM(E$6:E16))","v":""},{"$f":"SUM('単位修得状況確認表（共通教育科目，外国人留学生）'!AB$15:AB$16)","v":0},{"$f":"IF(SUM($C199:$C$204)=0,\"\",SUM(G$6:G16))","v":""}]
[null,"12期終了時",{"$f":"SUM('単位修得状況確認表（共通教育科目，外国人留学生）'!AD$7:AD$12)","v":0},{"$f":"IF(SUM($C200:$C$204)=0,\"\",SUM(C$6:C17))","v":""},{"$f":"SUM('単位修得状況確認表（共通教育科目，外国人留学生）'!AD$13:AD$14)","v":0},{"$f":"IF(SUM($C200:$C$204)=0,\"\",SUM(E$6:E17))","v":""},{"$f":"SUM('単位修得状況確認表（共通教育科目，外国人留学生）'!AD$15:AD$16)","v":0},{"$f":"IF(SUM($C200:$C$204)=0,\"\",SUM(G$6:G17))","v":""}]
[null,"13期終了時",{"$f":"SUM('単位修得状況確認表（共通教育科目，外国人留学生）'!AF$7:AF$12)","v":0},{"$f":"IF(SUM($C201:$C$204)=0,\"\",SUM(C$6:C18))","v":""},{"$f":"SUM('単位修得状況確認表（共通教育科目，外国人留学生）'!AF$13:AF$14)","v":0},{"$f":"IF(SUM($C201:$C$204)=0,\"\",SUM(E$6:E18))","v":""},{"$f":"SUM('単位修得状況確認表（共通教育科目，外国人留学生）'!AF$15:AF$16)","v":0},{"$f":"IF(SUM($C201:$C$204)=0,\"\",SUM(G$6:G18))","v":""}]
[null,"14期終了時",{"$f":"SUM('単位修得状況確認表（共通教育科目，外国人留学生）'!AH$7:AH$12)","v":0},{"$f":"IF(SUM($C202:$C$204)=0,\"\",SUM(C$6:C19))","v":""},{"$f":"SUM('単位修得状況確認表（共通教育科目，外国人留学生）'!AH$13:AH$14)","v":0},{"$f":"IF(SUM($C202:$C$204)=0,\"\",SUM(E$6:E19))","v":""},{"$f":"SUM('単位修得状況確認表（共通教育科目，外国人留学生）'!AH$15:AH$16)","v":0},{"$f":"IF(SUM($C202:$C$204)=0,\"\",SUM(G$6:G19))","v":""}]
[null,"15期終了時",{"$f":"SUM('単位修得状況確認表（共通教育科目，外国人留学生）'!AJ$7:AJ$12)","v":0},{"$f":"IF(SUM($C203:$C$204)=0,\"\",SUM(C$6:C20))","v":""},{"$f":"SUM('単位修得状況確認表（共通教育科目，外国人留学生）'!AJ$13:AJ$14)","v":0},{"$f":"IF(SUM($C203:$C$204)=0,\"\",SUM(E$6:E20))","v":""},{"$f":"SUM('単位修得状況確認表（共通教育科目，外国人留学生）'!AJ$15:AJ$16)","v":0},{"$f":"IF(SUM($C203:$C$204)=0,\"\",SUM(G$6:G20))","v":""}]
[null,"16期終了時",{"$f":"SUM('単位修得状況確認表（共通教育科目，外国人留学生）'!AL$7:AL$12)","v":0},{"$f":"IF(SUM($C204:$C$204)=0,\"\",SUM(C$6:C21))","v":""},{"$f":"SUM('単位修得状況確認表（共通教育科目，外国人留学生）'!AL$13:AL$14)","v":0},{"$f":"IF(SUM($C204:$C$204)=0,\"\",SUM(E$6:E21))","v":""},{"$f":"SUM('単位修得状況確認表（共通教育科目，外国人留学生）'!AL$15:AL$16)","v":0},{"$f":"IF(SUM($C204:$C$204)=0,\"\",SUM(G$6:G21))","v":""}]
[]
[]
[]
[]
[]
[]
[]
[]
[]
[]
[]
[]
[]
[]
[]
[]
[]
[]
[]
[null,"共通教育科目（選択必修科目）"]
[]
[null,null,"教養教育科目",null,"教養活用科目"]
[null,null,"取得単位数","累積取得単位数","取得単位数","累積取得単位数"]
[null,"1期終了時",{"$f":"SUM('単位修得状況確認表（共通教育科目，外国人留学生）'!H$18:H$21)","v":0},{"$f":"SUM(C$45:C45)","v":0},{"$f":"SUM('単位修得状況確認表（共通教育科目，外国人留学生）'!H$22:H$23)","v":0},{"$f":"SUM(E$45:E45)","v":0}]
[null,"2期終了時",{"$f":"SUM('単位修得状況確認表（共通教育科目，外国人留学生）'!J$18:J$21)","v":0},{"$f":"SUM(C$45:C46)","v":0},{"$f":"SUM('単位修得状況確認表（共通教育科目，外国人留学生）'!J$22:J$23)","v":0},{"$f":"SUM(E$45:E46)","v":0}]
[null,"3期終了時",{"$f":"SUM('単位修得状況確認表（共通教育科目，外国人留学生）'!L$18:L$21)","v":0},{"$f":"SUM(C$45:C47)","v":0},{"$f":"SUM('単位修得状況確認表（共通教育科目，外国人留学生）'!L$22:L$23)","v":0},{"$f":"SUM(E$45:E47)","v":0}]
[null,"4期終了時",{"$f":"SUM('単位修得状況確認表（共通教育科目，外国人留学生）'!N$18:N$21)","v":0},{"$f":"SUM(C$45:C48)","v":0},{"$f":"SUM('単位修得状況確認表（共通教育科目，外国人留学生）'!N$22:N$23)","v":0},{"$f":"SUM(E$45:E48)","v":0}]
[null,"5期終了時",{"$f":"SUM('単位修得状況確認表（共通教育科目，外国人留学生）'!P$18:P$21)","v":0},{"$f":"SUM(C$45:C49)","v":0},{"$f":"SUM('単位修得状況確認表（共通教育科目，外国人留学生）'!P$22:P$23)","v":0},{"$f":"SUM(E$45:E49)","v":0}]
[null,"6期終了時",{"$f":"SUM('単位修得状況確認表（共通教育科目，外国人留学生）'!R$18:R$21)","v":0},{"$f":"SUM(C$45:C50)","v":0},{"$f":"SUM('単位修得状況確認表（共通教育科目，外国人留学生）'!R$22:R$23)","v":0},{"$f":"SUM(E$45:E50)","v":0}]
[null,"7期終了時",{"$f":"SUM('単位修得状況確認表（共通教育科目，外国人留学生）'!T$18:T$21)","v":0},{"$f":"SUM(C$45:C51)","v":0},{"$f":"SUM('単位修得状況確認表（共通教育科目，外国人留学生）'!T$22:T$23)","v":0},{"$f":"SUM(E$45:E51)","v":0}]
[null,"8期終了時",{"$f":"SUM('単位修得状況確認表（共通教育科目，外国人留学生）'!V$18:V$21)","v":0},{"$f":"SUM(C$45:C52)","v":0},{"$f":"SUM('単位修得状況確認表（共通教育科目，外国人留学生）'!V$22:V$23)","v":0},{"$f":"SUM(E$45:E52)","v":0}]
[null,"9期終了時",{"$f":"SUM('単位修得状況確認表（共通教育科目，外国人留学生）'!X$18:X$21)","v":0},{"$f":"IF(SUM($C197:$C$204)=0,\"\",SUM(C$45:C53))","v":""},{"$f":"SUM('単位修得状況確認表（共通教育科目，外国人留学生）'!X$22:X$23)","v":0},{"$f":"IF(SUM($C197:$C$204)=0,\"\",SUM(E$45:E53))","v":""}]
[null,"10期終了時",{"$f":"SUM('単位修得状況確認表（共通教育科目，外国人留学生）'!Z$18:Z$21)","v":0},{"$f":"IF(SUM($C198:$C$204)=0,\"\",SUM(C$45:C54))","v":""},{"$f":"SUM('単位修得状況確認表（共通教育科目，外国人留学生）'!Z$22:Z$23)","v":0},{"$f":"IF(SUM($C198:$C$204)=0,\"\",SUM(E$45:E54))","v":""}]
[null,"11期終了時",{"$f":"SUM('単位修得状況確認表（共通教育科目，外国人留学生）'!AB$18:AB$21)","v":0},{"$f":"IF(SUM($C199:$C$204)=0,\"\",SUM(C$45:C55))","v":""},{"$f":"SUM('単位修得状況確認表（共通教育科目，外国人留学生）'!AB$22:AB$23)","v":0},{"$f":"IF(SUM($C199:$C$204)=0,\"\",SUM(E$45:E55))","v":""}]
[null,"12期終了時",{"$f":"SUM('単位修得状況確認表（共通教育科目，外国人留学生）'!AD$18:AD$21)","v":0},{"$f":"IF(SUM($C200:$C$204)=0,\"\",SUM(C$45:C56))","v":""},{"$f":"SUM('単位修得状況確認表（共通教育科目，外国人留学生）'!AD$22:AD$23)","v":0},{"$f":"IF(SUM($C200:$C$204)=0,\"\",SUM(E$45:E56))","v":""}]
[null,"13期終了時",{"$f":"SUM('単位修得状況確認表（共通教育科目，外国人留学生）'!AF$18:AF$21)","v":0},{"$f":"IF(SUM($C201:$C$204)=0,\"\",SUM(C$45:C57))","v":""},{"$f":"SUM('単位修得状況確認表（共通教育科目，外国人留学生）'!AF$22:AF$23)","v":0},{"$f":"IF(SUM($C201:$C$204)=0,\"\",SUM(E$45:E57))","v":""}]
[null,"14期終了時",{"$f":"SUM('単位修得状況確認表（共通教育科目，外国人留学生）'!AH$18:AH$21)","v":0},{"$f":"IF(SUM($C202:$C$204)=0,\"\",SUM(C$45:C58))","v":""},{"$f":"SUM('単位修得状況確認表（共通教育科目，外国人留学生）'!AH$22:AH$23)","v":0},{"$f":"IF(SUM($C202:$C$204)=0,\"\",SUM(E$45:E58))","v":""}]
[null,"15期終了時",{"$f":"SUM('単位修得状況確認表（共通教育科目，外国人留学生）'!AJ$18:AJ$21)","v":0},{"$f":"IF(SUM($C203:$C$204)=0,\"\",SUM(C$45:C59))","v":""},{"$f":"SUM('単位修得状況確認表（共通教育科目，外国人留学生）'!AJ$22:AJ$23)","v":0},{"$f":"IF(SUM($C203:$C$204)=0,\"\",SUM(E$45:E59))","v":""}]
[null,"16期終了時",{"$f":"SUM('単位修得状況確認表（共通教育科目，外国人留学生）'!AL$18:AL$21)","v":0},{"$f":"IF(SUM($C204:$C$204)=0,\"\",SUM(C$45:C60))","v":""},{"$f":"SUM('単位修得状況確認表（共通教育科目，外国人留学生）'!AL$22:AL$23)","v":0},{"$f":"IF(SUM($C204:$C$204)=0,\"\",SUM(E$45:E60))","v":""}]
[]
[]
[]
[]
[]
[]
[]
[]
[]
[]
[]
[]
[]
[]
[]
[]
[]
[]
[]
[null,"専門教育科目（基礎教育科目）"]
[]
[null,null,"必修科目"]
[null,null,"取得単位数","累積取得単位数"]
[null,"1期終了時",{"$f":"'単位修得状況確認表（専門教育科目）'!H$13","v":0},{"$f":"SUM(C$84:C84)","v":0}]
[null,"2期終了時",{"$f":"'単位修得状況確認表（専門教育科目）'!J$13","v":0},{"$f":"SUM(C$84:C85)","v":0}]
[null,"3期終了時",{"$f":"'単位修得状況確認表（専門教育科目）'!L$13","v":0},{"$f":"SUM(C$84:C86)","v":0}]
[null,"4期終了時",{"$f":"'単位修得状況確認表（専門教育科目）'!N$13","v":0},{"$f":"SUM(C$84:C87)","v":0}]
[null,"5期終了時",{"$f":"'単位修得状況確認表（専門教育科目）'!P$13","v":0},{"$f":"SUM(C$84:C88)","v":0}]
[null,"6期終了時",{"$f":"'単位修得状況確認表（専門教育科目）'!R$13","v":0},{"$f":"SUM(C$84:C89)","v":0}]
[null,"7期終了時",{"$f":"'単位修得状況確認表（専門教育科目）'!T$13","v":0},{"$f":"SUM(C$84:C90)","v":0}]
[null,"8期終了時",{"$f":"'単位修得状況確認表（専門教育科目）'!V$13","v":0},{"$f":"SUM(C$84:C91)","v":0}]
[null,"9期終了時",{"$f":"'単位修得状況確認表（専門教育科目）'!X$13","v":0},{"$f":"IF(SUM($C197:$C$204)=0,\"\",SUM(C$84:C92))","v":""}]
[null,"10期終了時",{"$f":"'単位修得状況確認表（専門教育科目）'!Z$13","v":0},{"$f":"IF(SUM($C198:$C$204)=0,\"\",SUM(C$84:C93))","v":""}]
[null,"11期終了時",{"$f":"'単位修得状況確認表（専門教育科目）'!AB$13","v":0},{"$f":"IF(SUM($C199:$C$204)=0,\"\",SUM(C$84:C94))","v":""}]
[null,"12期終了時",{"$f":"'単位修得状況確認表（専門教育科目）'!AD$13","v":0},{"$f":"IF(SUM($C200:$C$204)=0,\"\",SUM(C$84:C95))","v":""}]
[null,"13期終了時",{"$f":"'単位修得状況確認表（専門教育科目）'!AF$13","v":0},{"$f":"IF(SUM($C201:$C$204)=0,\"\",SUM(C$84:C96))","v":""}]
[null,"14期終了時",{"$f":"'単位修得状況確認表（専門教育科目）'!AH$13","v":0},{"$f":"IF(SUM($C202:$C$204)=0,\"\",SUM(C$84:C97))","v":""}]
[null,"15期終了時",{"$f":"'単位修得状況確認表（専門教育科目）'!AJ$13","v":0},{"$f":"IF(SUM($C203:$C$204)=0,\"\",SUM(C$84:C98))","v":""}]
[null,"16期終了時",{"$f":"'単位修得状況確認表（専門教育科目）'!AL$13","v":0},{"$f":"IF(SUM($C204:$C$204)=0,\"\",SUM(C$84:C99))","v":""}]
[]
[]
[]
[]
[]
[]
[]
[null,"専門教育科目（必修科目）"]
[]
[null,null,"取得単位数","累積取得単位数"]
[null,"1期終了時",{"$f":"'単位修得状況確認表（専門教育科目）'!H$34","v":0},{"$f":"SUM(C$110:C110)","v":0}]
[null,"2期終了時",{"$f":"'単位修得状況確認表（専門教育科目）'!J$34","v":0},{"$f":"SUM(C$110:C111)","v":0}]
[null,"3期終了時",{"$f":"'単位修得状況確認表（専門教育科目）'!L$34","v":0},{"$f":"SUM(C$110:C112)","v":0}]
[null,"4期終了時",{"$f":"'単位修得状況確認表（専門教育科目）'!N$34","v":0},{"$f":"SUM(C$110:C113)","v":0}]
[null,"5期終了時",{"$f":"'単位修得状況確認表（専門教育科目）'!P$34","v":0},{"$f":"SUM(C$110:C114)","v":0}]
[null,"6期終了時",{"$f":"'単位修得状況確認表（専門教育科目）'!R$34","v":0},{"$f":"SUM(C$110:C115)","v":0}]
[null,"7期終了時",{"$f":"'単位修得状況確認表（専門教育科目）'!T$34","v":0},{"$f":"SUM(C$110:C116)","v":0}]
[null,"8期終了時",{"$f":"'単位修得状況確認表（専門教育科目）'!V$34","v":0},{"$f":"SUM(C$110:C117)","v":0}]
[null,"9期終了時",{"$f":"'単位修得状況確認表（専門教育科目）'!X$34","v":0},{"$f":"IF(SUM($C197:$C$204)=0,\"\",SUM(C$110:C118))","v":""}]
[null,"10期終了時",{"$f":"'単位修得状況確認表（専門教育科目）'!Z$34","v":0},{"$f":"IF(SUM($C198:$C$204)=0,\"\",SUM(C$110:C119))","v":""}]
[null,"11期終了時",{"$f":"'単位修得状況確認表（専門教育科目）'!AB$34","v":0},{"$f":"IF(SUM($C199:$C$204)=0,\"\",SUM(C$110:C120))","v":""}]
[null,"12期終了時",{"$f":"'単位修得状況確認表（専門教育科目）'!AD$34","v":0},{"$f":"IF(SUM($C200:$C$204)=0,\"\",SUM(C$110:C121))","v":""}]
[null,"13期終了時",{"$f":"'単位修得状況確認表（専門教育科目）'!AF$34","v":0},{"$f":"IF(SUM($C201:$C$204)=0,\"\",SUM(C$110:C122))","v":""}]
[null,"14期終了時",{"$f":"'単位修得状況確認表（専門教育科目）'!AH$34","v":0},{"$f":"IF(SUM($C202:$C$204)=0,\"\",SUM(C$110:C123))","v":""}]
[null,"15期終了時",{"$f":"'単位修得状況確認表（専門教育科目）'!AJ$34","v":0},{"$f":"IF(SUM($C203:$C$204)=0,\"\",SUM(C$110:C124))","v":""}]
[null,"16期終了時",{"$f":"'単位修得状況確認表（専門教育科目）'!AL$34","v":0},{"$f":"IF(SUM($C204:$C$204)=0,\"\",SUM(C$110:C125))","v":""}]
[]
[]
[]
[]
[]
[]
[]
[null,"選択科目A群"]
[]
[null,null,"取得単位数","累積取得単位数"]
[null,"1期終了時",{"$f":"'単位修得状況確認表（専門教育科目）'!H$66","v":0},{"$f":"SUM(C$136:C136)","v":0}]
[null,"2期終了時",{"$f":"'単位修得状況確認表（専門教育科目）'!J$66","v":0},{"$f":"SUM(C$136:C137)","v":0}]
[null,"3期終了時",{"$f":"'単位修得状況確認表（専門教育科目）'!L$66","v":0},{"$f":"SUM(C$136:C138)","v":0}]
[null,"4期終了時",{"$f":"'単位修得状況確認表（専門教育科目）'!N$66","v":0},{"$f":"SUM(C$136:C139)","v":0}]
[null,"5期終了時",{"$f":"'単位修得状況確認表（専門教育科目）'!P$66","v":0},{"$f":"SUM(C$136:C140)","v":0}]
[null,"6期終了時",{"$f":"'単位修得状況確認表（専門教育科目）'!R$66","v":0},{"$f":"SUM(C$136:C141)","v":0}]
[null,"7期終了時",{"$f":"'単位修得状況確認表（専門教育科目）'!T$66","v":0},{"$f":"SUM(C$136:C142)","v":0}]
[null,"8期終了時",{"$f":"'単位修得状況確認表（専門教育科目）'!V$66","v":0},{"$f":"SUM(C$136:C143)","v":0}]
[null,"9期終了時",{"$f":"'単位修得状況確認表（専門教育科目）'!X$66","v":0},{"$f":"IF(SUM($C197:$C$204)=0,\"\",SUM(C$136:C144))","v":""}]
[null,"10期終了時",{"$f":"'単位修得状況確認表（専門教育科目）'!Z$66","v":0},{"$f":"IF(SUM($C198:$C$204)=0,\"\",SUM(C$136:C145))","v":""}]
[null,"11期終了時",{"$f":"'単位修得状況確認表（専門教育科目）'!AB$66","v":0},{"$f":"IF(SUM($C199:$C$204)=0,\"\",SUM(C$136:C146))","v":""}]
[null,"12期終了時",{"$f":"'単位修得状況確認表（専門教育科目）'!AD$66","v":0},{"$f":"IF(SUM($C200:$C$204)=0,\"\",SUM(C$136:C147))","v":""}]
[null,"13期終了時",{"$f":"'単位修得状況確認表（専門教育科目）'!AF$66","v":0},{"$f":"IF(SUM($C201:$C$204)=0,\"\",SUM(C$136:C148))","v":""}]
[null,"14期終了時",{"$f":"'単位修得状況確認表（専門教育科目）'!AH$66","v":0},{"$f":"IF(SUM($C202:$C$204)=0,\"\",SUM(C$136:C149))","v":""}]
[null,"15期終了時",{"$f":"'単位修得状況確認表（専門教育科目）'!AJ$66","v":0},{"$f":"IF(SUM($C203:$C$204)=0,\"\",SUM(C$136:C150))","v":""}]
[null,"16期終了時",{"$f":"'単位修得状況確認表（専門教育科目）'!AL$66","v":0},{"$f":"IF(SUM($C204:$C$204)=0,\"\",SUM(C$136:C151))","v":""}]
[]
[]
[]
[]
[]
[]
[]
[null,"選択科目B群"]
[]
[null,null,"取得単位数","累積取得単位数"]
[null,"1期終了時",{"$f":"'単位修得状況確認表（専門教育科目）'!H$81","v":0},{"$f":"SUM(C$162:C162)","v":0}]
[null,"2期終了時",{"$f":"'単位修得状況確認表（専門教育科目）'!J$81","v":0},{"$f":"SUM(C$162:C163)","v":0}]
[null,"3期終了時",{"$f":"'単位修得状況確認表（専門教育科目）'!L$81","v":0},{"$f":"SUM(C$162:C164)","v":0}]
[null,"4期終了時",{"$f":"'単位修得状況確認表（専門教育科目）'!N$81","v":0},{"$f":"SUM(C$162:C165)","v":0}]
[null,"5期終了時",{"$f":"'単位修得状況確認表（専門教育科目）'!P$81","v":0},{"$f":"SUM(C$162:C166)","v":0}]
[null,"6期終了時",{"$f":"'単位修得状況確認表（専門教育科目）'!R$81","v":0},{"$f":"SUM(C$162:C167)","v":0}]
[null,"7期終了時",{"$f":"'単位修得状況確認表（専門教育科目）'!T$81","v":0},{"$f":"SUM(C$162:C168)","v":0}]
[null,"8期終了時",{"$f":"'単位修得状況確認表（専門教育科目）'!V$81","v":0},{"$f":"SUM(C$162:C169)","v":0}]
[null,"9期終了時",{"$f":"'単位修得状況確認表（専門教育科目）'!X$81","v":0},{"$f":"IF(SUM($C197:$C$204)=0,\"\",SUM(C$162:C170))","v":""}]
[null,"10期終了時",{"$f":"'単位修得状況確認表（専門教育科目）'!Z$81","v":0},{"$f":"IF(SUM($C198:$C$204)=0,\"\",SUM(C$162:C171))","v":""}]
[null,"11期終了時",{"$f":"'単位修得状況確認表（専門教育科目）'!AB$81","v":0},{"$f":"IF(SUM($C199:$C$204)=0,\"\",SUM(C$162:C172))","v":""}]
[null,"12期終了時",{"$f":"'単位修得状況確認表（専門教育科目）'!AD$81","v":0},{"$f":"IF(SUM($C200:$C$204)=0,\"\",SUM(C$162:C173))","v":""}]
[null,"13期終了時",{"$f":"'単位修得状況確認表（専門教育科目）'!AF$81","v":0},{"$f":"IF(SUM($C201:$C$204)=0,\"\",SUM(C$162:C174))","v":""}]
[null,"14期終了時",{"$f":"'単位修得状況確認表（専門教育科目）'!AH$81","v":0},{"$f":"IF(SUM($C202:$C$204)=0,\"\",SUM(C$162:C175))","v":""}]
[null,"15期終了時",{"$f":"'単位修得状況確認表（専門教育科目）'!AJ$81","v":0},{"$f":"IF(SUM($C203:$C$204)=0,\"\",SUM(C$162:C176))","v":""}]
[null,"16期終了時",{"$f":"'単位修得状況確認表（専門教育科目）'!AL$81","v":0},{"$f":"IF(SUM($C204:$C$204)=0,\"\",SUM(C$162:C177))","v":""}]
[]
[]
[]
[]
[]
[]
[]
[]
[null,"累積単位数"]
[]
[null,null,"取得単位数","累積取得単位数"]
[null,"1期終了時",{"$f":"SUM(C6,E6,G6,C45,E45,C84,C110,C136,C162)","v":0},{"$f":"SUM(C$189:C189)","v":0}]
[null,"2期終了時",0,{"$f":"SUM(C$189:C190)","v":0}]
[null,"3期終了時",0,{"$f":"SUM(C$189:C191)","v":0}]
[null,"4期終了時",0,{"$f":"SUM(C$189:C192)","v":0}]
[null,"5期終了時",0,{"$f":"SUM(C$189:C193)","v":0}]
[null,"6期終了時",0,{"$f":"SUM(C$189:C194)","v":0}]
[null,"7期終了時",0,{"$f":"SUM(C$189:C195)","v":0}]
[null,"8期終了時",0,{"$f":"SUM(C$189:C196)","v":0}]
[null,"9期終了時",0,{"$f":"IF(SUM($C197:$C$204)=0,\"\",SUM(C$189:C197))","v":""}]
[null,"10期終了時",0,{"$f":"IF(SUM($C198:$C$204)=0,\"\",SUM(C$189:C198))","v":""}]
[null,"11期終了時",0,{"$f":"IF(SUM($C199:$C$204)=0,\"\",SUM(C$189:C199))","v":""}]
[null,"12期終了時",0,{"$f":"IF(SUM($C200:$C$204)=0,\"\",SUM(C$189:C200))","v":""}]
[null,"13期終了時",0,{"$f":"IF(SUM($C201:$C$204)=0,\"\",SUM(C$189:C201))","v":""}]
[null,"14期終了時",0,{"$f":"IF(SUM($C202:$C$204)=0,\"\",SUM(C$189:C202))","v":""}]
[null,"15期終了時",0,{"$f":"IF(SUM($C203:$C$204)=0,\"\",SUM(C$189:C203))","v":""}]
[null,"16期終了時",0,{"$f":"IF(SUM($C204:$C$204)=0,\"\",SUM(C$189:C204))","v":""}]
[]
[]
[]
[]
[]
[]
[]
[]
[]
[]
[]
[]
[]
[]
[]
[]
[null,"GPA"]
[]
[null,null,"累積GP","累積GPA","GPA累積単位数","累積P","累積F"]
[null,"1期終了時",{"$f":"'単位修得状況確認表（共通教育科目，外国人留学生）'!I$25+'単位修得状況確認表（専門教育科目）'!I$84","v":0},{"$f":"IF(E224=0,\"\",C224/E224)","v":""},{"$f":"D189-F224+G224","v":0},{"$f":"'単位修得状況確認表（共通教育科目，外国人留学生）'!H$28+'単位修得状況確認表（専門教育科目）'!H$88","v":0},{"$f":"'単位修得状況確認表（共通教育科目，外国人留学生）'!H$29+'単位修得状況確認表（専門教育科目）'!H$89-'単位修得状況確認表（共通教育科目，外国人留学生）'!H$30-'単位修得状況確認表（専門教育科目）'!H$90","v":0}]
[null,"2期終了時",{"$f":"C224+'単位修得状況確認表（共通教育科目，外国人留学生）'!K$25+'単位修得状況確認表（専門教育科目）'!K$84","v":0},"",0,{"$f":"F224+'単位修得状況確認表（共通教育科目，外国人留学生）'!J$28+'単位修得状況確認表（専門教育科目）'!J$88","v":0},{"$f":"G224+'単位修得状況確認表（共通教育科目，外国人留学生）'!J$29+'単位修得状況確認表（専門教育科目）'!J$89-'単位修得状況確認表（共通教育科目，外国人留学生）'!J$30-'単位修得状況確認表（専門教育科目）'!J$90","v":0}]
[null,"3期終了時",{"$f":"C225+'単位修得状況確認表（共通教育科目，外国人留学生）'!M$25+'単位修得状況確認表（専門教育科目）'!M$84","v":0},"",0,{"$f":"F225+'単位修得状況確認表（共通教育科目，外国人留学生）'!L$28+'単位修得状況確認表（専門教育科目）'!L$88","v":0},{"$f":"G225+'単位修得状況確認表（共通教育科目，外国人留学生）'!L$29+'単位修得状況確認表（専門教育科目）'!L$89-'単位修得状況確認表（共通教育科目，外国人留学生）'!L$30-'単位修得状況確認表（専門教育科目）'!L$90","v":0}]
[null,"4期終了時",{"$f":"C226+'単位修得状況確認表（共通教育科目，外国人留学生）'!O$25+'単位修得状況確認表（専門教育科目）'!O$84","v":0},"",0,{"$f":"F226+'単位修得状況確認表（共通教育科目，外国人留学生）'!N$28+'単位修得状況確認表（専門教育科目）'!N$88","v":0},{"$f":"G226+'単位修得状況確認表（共通教育科目，外国人留学生）'!N$29+'単位修得状況確認表（専門教育科目）'!N$89-'単位修得状況確認表（共通教育科目，外国人留学生）'!N$30-'単位修得状況確認表（専門教育科目）'!N$90","v":0}]
[null,"5期終了時",{"$f":"C227+'単位修得状況確認表（共通教育科目，外国人留学生）'!Q$25+'単位修得状況確認表（専門教育科目）'!Q$84","v":0},"",0,{"$f":"F227+'単位修得状況確認表（共通教育科目，外国人留学生）'!P$28+'単位修得状況確認表（専門教育科目）'!P$88","v":0},{"$f":"G227+'単位修得状況確認表（共通教育科目，外国人留学生）'!P$29+'単位修得状況確認表（専門教育科目）'!P$89-'単位修得状況確認表（共通教育科目，外国人留学生）'!P$30-'単位修得状況確認表（専門教育科目）'!P$90","v":0}]
[null,"6期終了時",{"$f":"C228+'単位修得状況確認表（共通教育科目，外国人留学生）'!S$25+'単位修得状況確認表（専門教育科目）'!S$84","v":0},"",0,{"$f":"F228+'単位修得状況確認表（共通教育科目，外国人留学生）'!R$28+'単位修得状況確認表（専門教育科目）'!R$88","v":0},{"$f":"G228+'単位修得状況確認表（共通教育科目，外国人留学生）'!R$29+'単位修得状況確認表（専門教育科目）'!R$89-'単位修得状況確認表（共通教育科目，外国人留学生）'!R$30-'単位修得状況確認表（専門教育科目）'!R$90","v":0}]
[null,"7期終了時",{"$f":"C229+'単位修得状況確認表（共通教育科目，外国人留学生）'!U$25+'単位修得状況確認表（専門教育科目）'!U$84","v":0},"",0,{"$f":"F229+'単位修得状況確認表（共通教育科目，外国人留学生）'!T$28+'単位修得状況確認表（専門教育科目）'!T$88","v":0},{"$f":"G229+'単位修得状況確認表（共通教育科目，外国人留学生）'!T$29+'単位修得状況確認表（専門教育科目）'!T$89-'単位修得状況確認表（共通教育科目，外国人留学生）'!T$30-'単位修得状況確認表（専門教育科目）'!T$90","v":0}]
[null,"8期終了時",{"$f":"C230+'単位修得状況確認表（共通教育科目，外国人留学生）'!W$25+'単位修得状況確認表（専門教育科目）'!W$84","v":0},"",0,{"$f":"F230+'単位修得状況確認表（共通教育科目，外国人留学生）'!V$28+'単位修得状況確認表（専門教育科目）'!V$88","v":0},{"$f":"G230+'単位修得状況確認表（共通教育科目，外国人留学生）'!V$29+'単位修得状況確認表（専門教育科目）'!V$89-'単位修得状況確認表（共通教育科目，外国人留学生）'!V$30-'単位修得状況確認表（専門教育科目）'!V$90","v":0}]
[null,"9期終了時",{"$f":"C231+'単位修得状況確認表（共通教育科目，外国人留学生）'!Y$25+'単位修得状況確認表（専門教育科目）'!Y$84","v":0},{"$f":"IF(OR(E232=0,E232=\"\"),\"\",C232/E232)","v":""},{"$f":"IF(D197=\"\",\"\",D197-F232+G232)","v":""},{"$f":"F231+'単位修得状況確認表（共通教育科目，外国人留学生）'!X$28+'単位修得状況確認表（専門教育科目）'!X$88","v":0},{"$f":"G231+'単位修得状況確認表（共通教育科目，外国人留学生）'!X$29+'単位修得状況確認表（専門教育科目）'!X$89-'単位修得状況確認表（共通教育科目，外国人留学生）'!X$30-'単位修得状況確認表（専門教育科目）'!X$90","v":0}]
[null,"10期終了時",{"$f":"C232+'単位修得状況確認表（共通教育科目，外国人留学生）'!AA$25+'単位修得状況確認表（専門教育科目）'!AA$84","v":0},{"$f":"IF(OR(E233=0,E233=\"\"),\"\",C233/E233)","v":""},{"$f":"IF(D198=\"\",\"\",D198-F233+G233)","v":""},{"$f":"F232+'単位修得状況確認表（共通教育科目，外国人留学生）'!Z$28+'単位修得状況確認表（専門教育科目）'!Z$88","v":0},{"$f":"G232+'単位修得状況確認表（共通教育科目，外国人留学生）'!Z$29+'単位修得状況確認表（専門教育科目）'!Z$89-'単位修得状況確認表（共通教育科目，外国人留学生）'!Z$30-'単位修得状況確認表（専門教育科目）'!Z$90","v":0}]
[null,"11期終了時",{"$f":"C233+'単位修得状況確認表（共通教育科目，外国人留学生）'!AC$25+'単位修得状況確認表（専門教育科目）'!AC$84","v":0},"","",{"$f":"F233+'単位修得状況確認表（共通教育科目，外国人留学生）'!AB$28+'単位修得状況確認表（専門教育科目）'!AB$88","v":0},{"$f":"G233+'単位修得状況確認表（共通教育科目，外国人留学生）'!AB$29+'単位修得状況確認表（専門教育科目）'!AB$89-'単位修得状況確認表（共通教育科目，外国人留学生）'!AB$30-'単位修得状況確認表（専門教育科目）'!AB$90","v":0}]
[null,"12期終了時",{"$f":"C234+'単位修得状況確認表（共通教育科目，外国人留学生）'!AE$25+'単位修得状況確認表（専門教育科目）'!AE$84","v":0},"","",{"$f":"F234+'単位修得状況確認表（共通教育科目，外国人留学生）'!AD$28+'単位修得状況確認表（専門教育科目）'!AD$88","v":0},{"$f":"G234+'単位修得状況確認表（共通教育科目，外国人留学生）'!AD$29+'単位修得状況確認表（専門教育科目）'!AD$89-'単位修得状況確認表（共通教育科目，外国人留学生）'!AD$30-'単位修得状況確認表（専門教育科目）'!AD$90","v":0}]
[null,"13期終了時",{"$f":"C235+'単位修得状況確認表（共通教育科目，外国人留学生）'!AG$25+'単位修得状況確認表（専門教育科目）'!AG$84","v":0},"","",{"$f":"F235+'単位修得状況確認表（共通教育科目，外国人留学生）'!AF$28+'単位修得状況確認表（専門教育科目）'!AF$88","v":0},{"$f":"G235+'単位修得状況確認表（共通教育科目，外国人留学生）'!AF$29+'単位修得状況確認表（専門教育科目）'!AF$89-'単位修得状況確認表（共通教育科目，外国人留学生）'!AF$30-'単位修得状況確認表（専門教育科目）'!AF$90","v":0}]
[null,"14期終了時",{"$f":"C236+'単位修得状況確認表（共通教育科目，外国人留学生）'!AI$25+'単位修得状況確認表（専門教育科目）'!AI$84","v":0},"","",{"$f":"F236+'単位修得状況確認表（共通教育科目，外国人留学生）'!AH$28+'単位修得状況確認表（専門教育科目）'!AH$88","v":0},{"$f":"G236+'単位修得状況確認表（共通教育科目，外国人留学生）'!AH$29+'単位修得状況確認表（専門教育科目）'!AH$89-'単位修得状況確認表（共通教育科目，外国人留学生）'!AH$30-'単位修得状況確認表（専門教育科目）'!AH$90","v":0}]
[null,"15期終了時",{"$f":"C237+'単位修得状況確認表（共通教育科目，外国人留学生）'!AK$25+'単位修得状況確認表（専門教育科目）'!AK$84","v":0},"","",{"$f":"F237+'単位修得状況確認表（共通教育科目，外国人留学生）'!AJ$28+'単位修得状況確認表（専門教育科目）'!AJ$88","v":0},{"$f":"G237+'単位修得状況確認表（共通教育科目，外国人留学生）'!AJ$29+'単位修得状況確認表（専門教育科目）'!AJ$89-'単位修得状況確認表（共通教育科目，外国人留学生）'!AJ$30-'単位修得状況確認表（専門教育科目）'!AJ$90","v":0}]
[null,"16期終了時",{"$f":"C238+'単位修得状況確認表（共通教育科目，外国人留学生）'!AM$25+'単位修得状況確認表（専門教育科目）'!AM$84","v":0},"","",{"$f":"F238+'単位修得状況確認表（共通教育科目，外国人留学生）'!AL$28+'単位修得状況確認表（専門教育科目）'!AL$88","v":0},{"$f":"G238+'単位修得状況確認表（共通教育科目，外国人留学生）'!AL$29+'単位修得状況確認表（専門教育科目）'!AL$89-'単位修得状況確認表（共通教育科目，外国人留学生）'!AL$30-'単位修得状況確認表（専門教育科目）'!AL$90","v":0}]